Workbook

Sheet Инструкция
J2: Код шаблона: JKH.OPEN.INFO.BALANCE.WARM
J3: ="Версия " & GetVersion() -> 
B4: Инструкция по заполнению шаблона
C7: Технические требования: • макросы во время работы должны быть включены
C8: • на рабочем месте должен быть установлен MS Office 2003, 2007, 2010 x86 с полной версией MS Excel
C9: • макросы во время работы должны быть включены
C10: • для корректной работы шаблона требуется выбрать низкий уровень безопасности (В меню MS Excel 2003: Сервис ¦ Макрос ¦ Безопасность ¦ выбрать нижний пункт «Низкая безопасность» ¦ «OK») (В MS Excel 2007 после открытия файла шаблона нажать на кнопку «Параметры…» в строке «Предупреждение системы безопасности», далее выбрать «Включить это содержимое» ¦ «OK»)
D12: ● | E12: голубой – ячейки, обязательные для заполнения;
D13: ● | E13: жёлтый – ячейки, предназначенные для заполнения;
D14: ● | E14: зелёный – ячейки с формулами и константами.
E16: Пояснение к заполнению (необходимо нажать один раз).
C18: Шаблон может быть сохранен на любом этапе заполнения!
C19: • При сохранении шаблона осуществляется проверка на наличие и корректность (например, КПП – 9 цифр) обязательных параметров на листах.
C20: • Если какая-то ячейка не удовлетворяет условию проверки, на лист «Проверка» добавляется гиперссылка на данную ячейку и причина, по которой шаблон не будет загружен в хранилище данных.
C21: • В колонке «Статус ошибки» для каждого сообщения возможны 2 значения: ошибка и предупреждение.
C22: • При наличии сообщений со статусом «Ошибка» шаблон будет отклонён системой, сообщения со статусом «Предупреждение» носят информационный характер, и такой шаблон будет принят системой.
C23: Организационно-технические консультации:
C24: ФИО:
C25: телефон:
C26: e-mail:
C27: WEB-сайт:
C28: Комментарий
C29: Дистрибутивы: | E29: Для устранения проблем с MS Excel (например, "Compile error in hidden module") воспользуйтесь пакетами библиотек:
C30: Дистрибутивы (ссылка): | E30: http://eias.ru/?page=show_distrs
C32: Консультации по методологии заполнения форм:
C33: ФИО:
C34: телефон:
C35: e-mail:
C36: WEB-сайт: | E36: http://eias.ru/
C37: Комментарий

Sheet Выбор субъекта РФ (hidden)
F2: 0
D3: Субъект РФ | F3: Челябинская область

Sheet Титульный
A1: =region_name -> Челябинская область | B1: =IF(god="","Не определено",god) -> 2011 | C1: =org&"_INN:"&inn&"_KPP:"&kpp -> ММПКХ_INN:7422000570_KPP:742201001
A2: =IF(org="","Не определено",org) -> ММПКХ | B2: =IF(inn="","Не определено",inn) -> 7422000570 | H2: =codeTemplate -> Код шаблона: JKH.OPEN.INFO.BALANCE.WARM
G3: =version -> 
A4: =IF(fil="","Не определено",fil) -> Не определено | B4: =IF(kpp="","Не определено",kpp) -> 742201001 | D4: Показатели подлежащие раскрытию в сфере теплоснабжения и сфере оказания услуг по передаче тепловой энергии (4)
E7: Субъект РФ | G7: Челябинская область
E9: Внимание! В зависимости от выбранного значения в поле "Публикация" изменяется содержание и количество листов!
E10: Публикация | G10: На сайте регулирующего органа
E12: Происходило ли изменение тарифа в текущем году | G12: нет
E14: Отчетный период (факт) | G14: 2011
A16: L0 | B16: Признак филиала | E16: Является ли данное юридическое лицо подразделением (филиалом) другой организации | G16: нет
A19: 66 | E19: Дата последнего обновления реестра организаций: 28.03.2012 11:25:22
E20: Наименование организации | G20: ММПКХ
E22: Наименование ПОДРАЗДЕЛЕНИЯ
E24: ИНН организации | G24: 7422000570
E25: КПП организации | G25: 742201001
E27: Вид деятельности | G27: производство (некомбинированная выработка)+передача+сбыт
E29: Превышает ли выручка от регулируемой деятельности 80% совокупной выручки за отчетный год | G29: нет
E31: НДС | G31: отчетность представлена без НДС
E33: Организация выполняет инвестиционную программу | G33: нет
E35: Система коммунальной инфраструктуры | F35: Условный порядковый номер | G35: 3
F36: Описание | G36: Город Озерск (ЗАТО)
E39: Дата последнего обновления реестра МР/МО: 28.03.2012 11:31:21
E40: Муниципальный район, на территории которого размещена система коммунальной инфраструктуры | F40: Муниципальное образование, на территории которого размещена система коммунальной инфраструктуры
E41: Наименование МР | F41: Наименование МО | G41: ОКТМО
E42: Город Озерск (ЗАТО) | F42: Город Озерск (ЗАТО) | G42: 75743000
F43: Добавить МО
E44: Добавить МР
E46: Адрес организации
E47: Юридический адрес: | G47: 456785, г.Озерск, Челябинская обл., ул.Матросова 44
E48: Почтовый адрес: | G48: 456785, г.Озерск, Челябинская обл., ул.Матросова 44
E50: Руководитель
E51: Фамилия, имя, отчество: | G51: Новиков Константин Иванович
E52: (код) номер телефона: | G52: 8(35130)43405, приемная 8(35130)46774
E54: Главный бухгалтер
E55: Фамилия, имя, отчество: | G55: Кудрявцева Ольга Вениаминовна
E56: (код) номер телефона: | G56: 8(35130)45390
E58: Должностное лицо, ответственное за составление формы
E59: Фамилия, имя, отчество: | G59: Лаврентьева Ольга Андреевна
E60: Должность: | G60: экономист ПЭО
E61: (код) номер телефона: | G61: 8(35130)46705
E62: e-mail: | G62: economist.olga@mail.ru

Sheet ТС характеристики
D6: =codeTemplate -> Код шаблона: JKH.OPEN.INFO.BALANCE.WARM
D7: Список листов
D8: Информация об основных потребительских характеристиках регулируемых товаров и услуг регулируемых организаций и их соответствии государственным и иным утвержденным стандартам качества *
D9: =IF(org="","",IF(fil="",org,org & " (" & fil & ")")) -> ММПКХ
E12: № п/п | F12: Наименование показателя | G12: Значение
E13: 1 | F13: 2 | G13: 3
E14: 1 | F14: Количество аварий на системах теплоснабжения (единиц на км) ** | G14: 0
E15: 2 | F15: Количество часов (суммарно за календарный год), превышающих допустимую продолжительность перерыва подачи тепловой энергии в отопительный период | G15: 0
E16: 2.1 | F16: Количество потребителей, затронутых ограничениями подачи тепловой энергии | G16: 0
E17: 3 | F17: Количество часов (суммарно за календарный год) отклонения от нормативной температуры воздуха по вине регулируемой организации в жилых и нежилых отапливаемых помещениях | G17: 0
E18: 4 | F18: Комментарии | G18: нет
E20: * | F20: Раскрывается не позднее 30 дней со дня сдачи годового бухгалтерского баланса в налоговые органы.
E21: ** | F21: Учитывать любое нарушение системы.

Sheet ТС инвестиции (hidden)
E2: 5.1
E4: 7.9 | G4: Прогноз на отчетный период
G5: Факт на отчетный период
E7: 8.1 | G7: I квартал, профинансировано
G8: II квартал, профинансировано
G9: III квартал, профинансировано
G10: IV квартал, профинансировано
G11: I квартал, освоено
G12: II квартал, освоено
G13: III квартал, освоено
G14: IV квартал, освоено
D15: =codeTemplate -> Код шаблона: JKH.OPEN.INFO.BALANCE.WARM
D16: Список листов
D17: Информация об инвестиционных программах и отчетах об их реализации *
D18: =IF(org="","",IF(fil="",org,org & " (" & fil & ")")) -> ММПКХ
B21: Мероприятие 1 | E21: № п/п | F21: Наименование показателя | H21: Значение | I21: Добавить мероприятие
B22: 4 | E22: 1 | F22: =E22+1 -> 2 | H22: 3
E23: 1 | F23: Наименование инвестиционной программы (мероприятия)
B24: х | E24: 2 | F24: Цель инвестиционной программы | G24: Цель инвестиционной программы
E25: 3 | F25: Срок начала реализации инвестиционной программы
E26: 4 | F26: Срок окончания реализации инвестиционной программы
B27: =SUM(B28:B30) -> 0 | E27: 5 | F27: Потребность в финансовых средствах, необходимых для реализации инвестиционной программы за весь период реализации (тыс.руб.), в том числе по источникам финансирования | H27: =SUM(H28:H30) -> 0
E28: 5.0
E29: 5.1
F30: Добавить источники финансирования
B31: =SUM(B32:B34) -> 0 | E31: 6 | F31: Потребность в финансовых средствах, необходимых для реализации инвестиционной программы за отчетный период (тыс.руб.), в том числе по источникам финансирования | H31: =SUM(H32:H34) -> 0
E32: 6.0
E33: 6.1
F34: Добавить источники финансирования
B35: х | E35: 7 | F35: Эффективность реализации инвестиционной программы (включая изменения технико-экономических показателей организации): | H35: х
B36: х | E36: 7.1 | F36: Срок окупаемости, лет | G36: Прогноз на отчетный период
B37: х | G37: Факт на отчетный период
E38: 7.2 | F38: Перебои в снабжении потребителей (часов на потребителя) | G38: Прогноз на отчетный период
G39: Факт на отчетный период
E40: 7.3 | F40: Продолжительность (бесперебойность) поставки товаров и услуг (час/день) | G40: Прогноз на отчетный период
G41: Факт на отчетный период
E42: 7.4 | F42: Уровень потерь и неучтенного потребления (%) | G42: Прогноз на отчетный период
G43: Факт на отчетный период
E44: 7.5 | F44: Коэффициент потерь (Гкал/км) | G44: Прогноз на отчетный период
G45: Факт на отчетный период
E46: 7.6 | F46: Износ систем коммунальной инфраструктуры (%), в том числе: | G46: Прогноз на отчетный период
G47: Факт на отчетный период
E48: 7.7 | F48: износ оборудования производства (котлы) | G48: Прогноз на отчетный период
G49: Факт на отчетный период
E50: 7.8 | F50: износ оборудования передачи тепловой энергии (сети) | G50: Прогноз на отчетный период
G51: Факт на отчетный период
E52: 7.9 | F52: Удельный вес сетей, нуждающихся в замене (%) | G52: Прогноз на отчетный период
G53: Факт на отчетный период
E54: 7.10 | F54: Обеспеченность потребления товаров и услуг приборами учета (%) | G54: Прогноз на отчетный период
G55: Факт на отчетный период
E56: 7.11 | F56: Расход топлива на 1 Гкал, т.у.т./Гкал | G56: Прогноз на отчетный период
G57: Факт на отчетный период
E58: 7.12 | F58: Расход электроэнергии на выработку 1 Гкал, кВт∙ч/Гкал | G58: Прогноз на отчетный период
G59: Факт на отчетный период
E60: 7.13 | F60: Расход электроэнергии на передачу 1 Гкал, кВт.ч/Гкал | G60: Прогноз на отчетный период
G61: Факт на отчетный период
E62: 7.14 | F62: Количество аварий (с учетом котельных), ед | G62: Прогноз на отчетный период
G63: Факт на отчетный период
E64: 7.15 | F64: Количество аварий на 1 км тепловых сетей, ед. | G64: Прогноз на отчетный период
G65: Факт на отчетный период
E66: 7.16 | F66: Производительность труда на 1 человека, тыс. руб./чел. | G66: Прогноз на отчетный период
G67: Факт на отчетный период
F68: Добавить показатель
B69: х | E69: 8 | F69: Использование инвестиционных средств за отчетный год (тыс.руб.) | H69: х
B70: =SUMIF($G$78:$G$87,$G70,B$78:B$87) -> 0 | F70: Всего, в том числе по источникам финансирования: | G70: I квартал, профинансировано | H70: =SUMIF($G$78:$G$87,$G70,H$78:H$87) -> 0
B71: 0 | G71: II квартал, профинансировано | H71: 0
B72: 0 | G72: III квартал, профинансировано | H72: 0
B73: 0 | G73: IV квартал, профинансировано | H73: 0
B74: 0 | G74: I квартал, освоено | H74: 0
B75: 0 | G75: II квартал, освоено | H75: 0
B76: 0 | G76: III квартал, освоено | H76: 0
B77: 0 | G77: IV квартал, освоено | H77: 0
E79: 8.1 | G79: I квартал, профинансировано
G80: II квартал, профинансировано
G81: III квартал, профинансировано
G82: IV квартал, профинансировано
G83: I квартал, освоено
G84: II квартал, освоено
G85: III квартал, освоено
G86: IV квартал, освоено
F87: Добавить источники финансирования
B88: Удалить мероприятие
E90: * Раскрывается не позднее 30 дней со дня сдачи годового бухгалтерского баланса в налоговые органы

Sheet ТС показатели
D6: =codeTemplate -> Код шаблона: JKH.OPEN.INFO.BALANCE.WARM
D7: Список листов
D8: Информация об основных показателях финансово-хозяйственной деятельности регулируемых организаций, включая структуру основных производственных затрат (в части регулируемой деятельности) *
D9: =IF(org="","",IF(fil="",org,org & " (" & fil & ")")) -> ММПКХ
E12: № п/п | F12: Наименование показателя | H12: Единица измерения | I12: Значение
E13: 1 | F13: =E13+1 -> 2 | H13: =F13+1 -> 3 | I13: =H13+1 -> 4
E14: 1 | F14: Вид регулируемой деятельности (производство, передача и сбыт тепловой энергии) | H14: x | I14: =IF(activity = "","",activity) -> производство (некомбинированная выработка)+передача+сбыт
E15: 2 | F15: Выручка от регулируемой деятельности | H15: тыс.руб. | I15: =671161.2+41727.8 -> 712889
E16: 3 | F16: Себестоимость производимых товаров (оказываемых услуг) по регулируемому виду деятельности, в том числе: | H16: тыс.руб. | I16: =SUM(I17:I18,I24,I27:I33,I36,I39,I42:I43) -> 764028.8958
E17: 3.1 | F17: Расходы на покупаемую тепловую энергию (мощность) | H17: тыс.руб. | I17: =542315.93+88940348.64/1000 -> 631256.2786
E18: 3.2 | F18: Расходы на топливо | H18: тыс.руб. | I18: =SUMIF(G19:G23,G19,I19:I23) -> 27990.92219
E19: 3.2.1 | F19: газ природный по регулируемой цене | G19: Стоимость | H19: тыс.руб. | I19: =27990922.19/1000 -> 27990.92219
G20: Объем | H20: тыс. м3 | I20: =8958.512 -> 8958.512
G21: Стоимость 1й единицы объема с учетом доставки (транспортировки) | H21: тыс.руб. | I21: =nerr(I19/I20) -> 
G22: Способ приобретения | H22: x | I22: прямые договора без торгов
F23: Добавить вид топлива
E24: 3.3 | F24: Расходы на покупаемую электрическую энергию (мощность), потребляемую оборудованием, используемым в технологическом процессе: | H24: тыс.руб. | I24: =316851.98/1000+2509409.22/1000+211756.25/1000 -> 3038.01745
E25: 3.3.1 | F25: Средневзвешенная стоимость 1 кВт*ч (с учетом мощности) | H25: руб. | I25: =nerr(I24/I26) -> 
E26: 3.3.2 | F26: Объем приобретенной электрической энергии | H26: тыс. кВт*ч | I26: =118087/1000+769668/1000+74090/1000 -> 961.845
E27: 3.4 | F27: Расходы на приобретение холодной воды, используемой в технологическом процессе | H27: тыс.руб. | I27: =2953026*14.46/1000 -> 42700.75596
E28: 3.5 | F28: Расходы на химреагенты, используемые в технологическом процессе | H28: тыс.руб. | I28: =(557.86+365.81-923.67)/1000+(552209.48)/1000 -> 552.20948
E29: 3.6 | F29: Расходы на оплату труда основного производственного персонала | H29: тыс.руб. | I29: =(5025392.41+26501.54+84476.26+507.43+122913.73+572.79+923883.27+3134.7+3237356.77+1323.76+1103859.24)/1000+(3237356.77+1323.76)/1000 -> 13768.60243
E30: 3.7 | F30: Отчисления на социальные нужды основного производственного персонала | H30: тыс.руб. | I30: =(9985.12+1696631.79+167.81+28511.67+244.43+41523.8+1842.94+313150.92+6417.52+1093884.7+2189.85+372279.74)/1000+(6417.52+1093884.7)/1000 -> 4667.13251
E31: 3.8 | F31: Расходы на амортизацию основных производственных средств, используемых в технологическом процессе | H31: тыс.руб. | I31: =(4109672.73+70573.52+97914.94+161962.49+103968.89+1060282.71)/1000+103968.09/1000 -> 5708.34337
E32: 3.9 | F32: Расходы на аренду имущества, используемого в технологическом процессе | H32: тыс.руб. | I32: =3000/1000+9000/1000 -> 12
E33: 3.10 | F33: Общепроизводственные (цеховые) расходы, в том числе: | H33: тыс.руб. | I33: 13236.62
E34: 3.10.1 | F34: Расходы на оплату труда | H34: тыс.руб. | I34: =(1577696.83+4446.1+27653.1+80.5+37164.26+115.99+243152+268177.89+886777.61)/1000+(268177.89)/1000 -> 3313.44217
E35: 3.10.2 | F35: Отчисления на социальные нужды | H35: тыс.руб. | I35: =(3155.79+536506.96+55.27+9402+74.58+12635.76+486.31+82671.36+536.39+91180.36+1106.5+188096.5)/1000+(91180.36+536.39)/1000 -> 1017.62453
E36: 3.11 | F36: Общехозяйственные (управленческие) расходы | H36: тыс.руб. | I36: =(4767040.95+89439.73+93008.17+546578.29+1946568.94+1029473.32)/1000+2073908.32/1000 -> 10546.01772
E37: 3.11.1 | F37: Расходы на оплату труда | H37: тыс.руб. | I37: 5136.69
E38: 3.11.2 | F38: Отчисления на социальные нужды | H38: тыс.руб. | I38: 1721.34
E39: 3.12 | F39: Расходы на ремонт основных производственных средств | H39: тыс.руб. | I39: =SUM(I40:I41) -> 8755.83905
E40: 3.12.1 | F40: Расходы на капитальный ремонт основных производственных средств | H40: тыс.руб. | I40: =(1698213.6+31671.78+30070.42+61546.09)/1000 -> 1821.50189
E41: 3.12.2 | F41: Расходы на текущий ремонт основных производственных средств | H41: тыс.руб. | I41: =(68142.44+854306.81+1389191.31+1118.26+14748.96+24788.19+1689.37+20536.94+25901.04+94600.26+75434.62+185053.27+884522.27+304881.07+633654.67+3980.34+113366.39+345928.64)/1000+863721.97/1000+347312.5/1000+681457.84/1000 -> 6934.33716
E42: 3.13 | F42: Расходы на услуги производственного характера, выполняемые по договорам с организациями на проведение регламентных работ в рамках технологического процесса | H42: тыс.руб. | I42: =(1100305.71+27857.77-22196.97+1114.41+211089.2+381035.45)/1000+96951.44/1000 -> 1796.15701
F43: Добавить запись
E44: 4 | F44: Валовая прибыль от продажи товаров и услуг по регулируемому виду деятельности (теплоснабжение и передача тепловой энергии) | H44: тыс.руб. | I44: =I15-I16 -> -51139.89581
E45: 5 | F45: Чистая прибыль от регулируемого вида деятельности, в том числе: | H45: тыс.руб. | I45: =I44 -> -51139.89581
E46: 5.1 | F46: чистая прибыль на финансирование мероприятий, предусмотренных инвестиционной программой по развитию системы теплоснабжения | H46: тыс.руб. | I46: 0
E47: 6 | F47: Изменение стоимости основных фондов: | H47: тыс.руб. | I47: =I48+I49-I50 -> 69770.71
E48: 6.1 | F48: стоимость основных фондов на начало отчетного периода | H48: тыс.руб. | I48: 81658.92
E49: 6.2 | F49: стоимость введенных в эксплуатацию основных фондов | H49: тыс.руб. | I49: 4708.69
E50: 6.3 | F50: стоимость выведенных из эксплуатации основных фондов | H50: тыс.руб. | I50: 16596.9
E51: 7 | F51: Установленная тепловая мощность | H51: Гкал/ч | I51: =60.7+22.44 -> 83.14
E52: 8 | F52: Присоединенная нагрузка | H52: Гкал/ч | I52: =33.3+22.6 -> 55.9
E53: 9 | F53: Объем вырабатываемой регулируемой организацией тепловой энергии | H53: тыс. Гкал | I53: =53040/1000 -> 53.04
E54: 9.1 | F54: Справочно: объем тепловой энергии на технологические нужды производства | H54: тыс. Гкал | I54: 2.6357
E55: 10 | F55: Объем покупаемой регулируемой организацией тепловой энергии | H55: тыс. Гкал | I55: =178.783 -> 178.783
E56: 11 | F56: Объем тепловой энергии, отпускаемой потребителям, в том числе: | H56: тыс. Гкал | I56: =SUM(I57:I58) -> 1009.784
E57: 11.1 | F57: По приборам учета | H57: тыс. Гкал | I57: =1.504+44.234+0.08 -> 45.818
E58: 11.2 | F58: По нормативам потребления | H58: тыс. Гкал | I58: =909.79+44.234+34.17+21.59-I57 -> 963.966
E59: 12 | F59: Технологические потери тепловой энергии при передаче по тепловым сетям | H59: % | I59: 17.18
E60: 13 | F60: Справочно: потери тепла через изоляцию труб | H60: тыс.Гкал | I60: =190824.802/1000 -> 190.824802
E61: 14 | F61: Протяженность магистральных сетей и тепловых вводов (в однотрубном исчислении) | H61: км | I61: =223.3+12.22 -> 235.52
E62: 15 | F62: Протяженность разводящих сетей (в однотрубном исчислении) | H62: км | I62: =91.7+5.02 -> 96.72
E63: 16 | F63: Количество теплоэлектростанций | H63: ед. | I63: 0
E64: 17 | F64: Количество тепловых станций и котельных | H64: ед. | I64: =2+2 -> 4
E65: 18 | F65: Количество тепловых пунктов | H65: ед. | I65: 0
E66: 19 | F66: Среднесписочная численность основного производственного персонала | H66: чел. | I66: 115
E67: 20 | F67: Удельный расход условного топлива на единицу тепловой энергии, отпускаемой в тепловую сеть | H67: кг у.т./Гкал | I67: 139.22
E68: 21 | F68: Удельный расход электрической энергии на единицу тепловой энергии, отпускаемой в тепловую сеть | H68: кВт*ч/Гкал | I68: =I26/I56 -> 0.9525254906
E69: 22 | F69: Удельный расход холодной воды на единицу тепловой энергии, отпускаемой в тепловую сеть | H69: куб. м/Гкал | I69: =I27/I56 -> 42.28701976
E70: 23 | F70: Комментарии | I70: нет
E72: * Раскрывается не позднее 30 дней со дня сдачи годового бухгалтерского баланса в налоговые органы.

Sheet ТС показатели (2)
D6: =codeTemplate -> Код шаблона: JKH.OPEN.INFO.BALANCE.WARM
D7: Список листов
D8: Информация об объемах товаров и услуг, их стоимости и способах приобретения *
D9: =IF(org="","",IF(fil="",org,org & " (" & fil & ")")) -> ММПКХ
E12: № п/п | F12: Наименование товара/услуги | H12: Единица измерения | I12: Значение
E13: 1 | F13: =E13+1 -> 2 | H13: =F13+1 -> 3 | I13: =H13+1 -> 4
E14: 1 | F14: Расходы на капитальный ремонт основных производственных средств | I14: =SUMIF(G15:G23,G15,I15:I23) -> 1821.50189
E15: 1.0 | G15: Стоимость
G16: Кол-во
G17: Стоимость 1й единицы с учетом доставки (транспортировки)
G18: Способ приобретения
E19: 1.1 | G19: Стоимость | H19: тыс.руб. | I19: ='ТС показатели'!I40 -> 1821.50189
G20: Кол-во | H20: шт | I20: 1
G21: Стоимость 1й единицы с учетом доставки (транспортировки) | H21: тыс.руб. | I21: =IF(I20="",0,IF(I20=0,0,I19/I20)) -> 1821.50189
G22: Способ приобретения | H22: x | I22: прочее
F23: Добавить запись
E24: 2 | F24: Расходы на текущий ремонт основных производственных средств | I24: =SUMIF(G25:G33,G25,I25:I33) -> 6934.33716
E25: 2.0 | G25: Стоимость
G26: Кол-во
G27: Стоимость 1й единицы с учетом доставки (транспортировки)
G28: Способ приобретения
E29: 2.1 | G29: Стоимость | H29: тыс.руб. | I29: ='ТС показатели'!I41 -> 6934.33716
G30: Кол-во | H30: шт | I30: 1
G31: Стоимость 1й единицы с учетом доставки (транспортировки) | H31: тыс.руб. | I31: =IF(I30="",0,IF(I30=0,0,I29/I30)) -> 6934.33716
G32: Способ приобретения | H32: x | I32: прочее
F33: Добавить запись
E34: 3 | F34: Расходы на услуги производственного характера, выполняемые по договорам с организациями на проведение регламентных работ в рамках технологического процесса | I34: =SUMIF(G35:G43,G35,I35:I43) -> 1796.15701
E35: 3.0 | G35: Стоимость
G36: Кол-во
G37: Стоимость 1й единицы с учетом доставки (транспортировки)
G38: Способ приобретения
E39: 3.1 | G39: Стоимость | H39: тыс.руб. | I39: ='ТС показатели'!I42 -> 1796.15701
G40: Кол-во | H40: шт | I40: 1
G41: Стоимость 1й единицы с учетом доставки (транспортировки) | H41: тыс.руб. | I41: =IF(I40="",0,IF(I40=0,0,I39/I40)) -> 1796.15701
G42: Способ приобретения | H42: x | I42: прямые договора без торгов
F43: Добавить запись
E45: * Раскрывается не позднее 30 дней со дня сдачи годового бухгалтерского баланса в налоговые органы

Sheet Ссылки на публикации
D4: =codeTemplate -> Код шаблона: JKH.OPEN.INFO.BALANCE.WARM
D5: Список листов
D6: Ссылки на публикации в других источниках
D7: =IF(org="","",IF(fil="",org,org & " (" & fil & ")")) -> ММПКХ
E10: Указание на официальное печатное издание и (или) адрес сайта в сети Интернет, которые используются для размещения раскрываемой информации *
E12: № п/п | F12: Содержание пункта | G12: Адрес сайта в сети Интернет | H12: Печатное издание
E13: 1 | F13: =E13+1 -> 2 | G13: 3 | H13: 4
E14: 1 | F14: Информация об основных потребительских характеристиках регулируемых товаров и услуг регулируемых организаций и их соответствии государственным и иным утвержденным стандартам качества | G14: нет | H14: нет
E15: 2 | F15: Информация об инвестиционных программах и отчетах об их реализации **
E16: 3 | F16: Информация об основных показателях финансово-хозяйственной деятельности регулируемых организаций, включая структуру основных производственных затрат (в части регулируемой деятельности) | G16: www.ozerskadm.ru | H16: нет
E17: 4 | F17: Информация о расходах на капитальный и текущий ремонт, услуги производственного характера | G17: нет | H17: нет
E18: 5 | F18: Сведения об источнике публикации годовой бухгалтерской отчетности, включая бухгалтерский баланс и приложения к нему *** | G18: нет | H18: нет
D19: end | F19: Добавить запись
E21: * Источники публикации сообщаются в течение 5 рабочих дней со дня опубликования информации в официальных печатных изданиях (размещения на сайте в сети Интернет). Информация раскрывается не позднее 30 дней со дня сдачи годового бухгалтерского баланса в налоговые органы.
E22: ** Информация подлежит публикованию в официальных печатных изданиях (со ссылкой на адрес сайта в сети Интернет). В случае, если информация публикуется на сайте регулирующего органа, достаточно указать официальное печатное издание. В случае, если информация публикуется на сайте организации, необходимо указать и печатное издание, и адрес сайта в сети Интернет.
E23: *** Раскрывается в случае, если выручка от регулируемой деятельности превышает 80% совокупной выручки за отчетный год.

Sheet Титульный (2)
A1: =region_name -> Челябинская область | B1: =IF(god="","Не определено",god) -> 2011 | C1: =org&"_INN:"&inn&"_KPP:"&kpp -> ММПКХ_INN:7422000570_KPP:742201001
A2: =IF(org="","Не определено",org) -> ММПКХ | B2: =IF(inn="","Не определено",inn) -> 7422000570 | H2: =codeTemplates -> Код шаблона: JKH.OPEN.INFO.BALANCE.VO
G3: =version -> Версия 4.1
A4: =IF(fil="","Не определено",fil) -> Не определено | B4: =IF(kpp="","Не определено",kpp) -> 742201001 | D4: Показатели подлежащие раскрытию в сфере водоотведения и (или) очистки сточных вод (4)
E7: Субъект РФ | G7: Челябинская область
E9: Внимание! В зависимости от выбранного значения в поле "Публикация" изменяется содержание и количество листов!
E10: Публикация | G10: На сайте регулирующего органа
E12: Происходило ли изменение тарифа в текущем году | G12: нет
E14: Отчетный период (факт) | G14: 2011
A16: L0 | B16: Признак филиала | E16: Является ли данное юридическое лицо подразделением (филиалом) другой организации | G16: нет
A19: 66 | E19: Дата последнего обновления реестра организаций: 29.03.2012 16:22:16
E20: Наименование организации | G20: ММПКХ
E22: Наименование ПОДРАЗДЕЛЕНИЯ
E24: ИНН организации | G24: 7422000570
E25: КПП организации | G25: 742201001
E27: Вид деятельности
E29: Превышает ли выручка от регулируемой деятельности 80% совокупной выручки за отчетный год | G29: нет
E31: НДС | G31: отчетность представлена без НДС
E33: Организация выполняет инвестиционную программу | G33: нет
E35: Система коммунальной инфраструктуры | F35: Условный порядковый номер | G35: 3
F36: Описание | G36: Город Озерск (ЗАТО)
E39: Дата последнего обновления реестра МР/МО: 29.03.2012 16:24:41
E40: Муниципальный район, на территории которого размещена система коммунальной инфраструктуры | F40: Муниципальное образование, на территории которого размещена система коммунальной инфраструктуры
E41: Наименование МР | F41: Наименование МО | G41: ОКТМО
E42: Город Озерск (ЗАТО) | F42: Город Озерск (ЗАТО) | G42: 75743000
F43: Добавить МО
E44: Добавить МР
E46: Адрес организации
E47: Юридический адрес: | G47: 456785, г.Озерск, Челябинская обл., ул.Матросова 44
E48: Почтовый адрес: | G48: 456785, г.Озерск, Челябинская обл., ул.Матросова 44
E50: Руководитель
E51: Фамилия, имя, отчество: | G51: Новиков Константин Иванович
E52: (код) номер телефона: | G52: 8(35130)43405, приемная 8(35130)46774
E54: Главный бухгалтер
E55: Фамилия, имя, отчество: | G55: Кудрявцева Ольга Вениаминовна
E56: (код) номер телефона: | G56: 8(35130)45390
E58: Должностное лицо, ответственное за составление формы
E59: Фамилия, имя, отчество: | G59: Лаврентьева Ольга Андреевна
E60: Должность: | G60: экономист ПЭО
E61: (код) номер телефона: | G61: 8(35130)46705
E62: e-mail: | G62: economist.olga@mail.ru

Sheet ВО характеристики
D6: =codeTemplates -> Код шаблона: JKH.OPEN.INFO.BALANCE.VO
D7: Список листов
D8: Информация об основных потребительских характеристиках регулируемых товаров и услуг регулируемых организаций и их соответствии государственным и иным утвержденным стандартам качества *
D9: =IF(org="","",IF(fil="",org,org & " (" & fil & ")")) -> ММПКХ
E12: № п/п | F12: Наименование показателя | G12: Значение
E13: 1 | F13: 2 | G13: 3
E14: 1 | F14: Количество аварий на 1 км сетей водоотведения, ед. ** | G14: 0
E15: 2 | F15: Количество засоров на 1 км самотечных сетей, ед. | G15: 0
E16: 3 | F16: Общее количество проведенных проб на сбросе очищенных (частично очищенных) сточных вод по следующим показателям: | G16: =SUM(G17:G23) -> 2484
E17: 3.1 | F17: взвешенные вещества | G17: 1674
E18: 3.2 | F18: БПК | G18: 120
E19: 3.3 | F19: аммоний-ион | G19: 198
E20: 3.4 | F20: нитрит-анион | G20: 186
E21: 3.5 | F21: фосфаты (по Р) | G21: 120
E22: 3.6 | F22: нефтепродукты | G22: 186
E23: 3.7 | F23: микробиология | G23: 0
E24: 4 | F24: Количество проведенных проб, выявивших несоответствие очищенных (частично очищенных) сточных вод санитарным нормам (предельно допустимой концентрации) на сбросе очищенных (частично очищенных) сточных вод, по следующим показателям: | G24: =SUM(G25:G31) -> 0
E25: 4.1 | F25: взвешенные вещества | G25: 0
E26: 4.2 | F26: БПК | G26: 0
E27: 4.3 | F27: аммоний-ион | G27: 0
E28: 4.4 | F28: нитрит-анион | G28: 0
E29: 4.5 | F29: фосфаты (по Р) | G29: 0
E30: 4.6 | F30: нефтепродукты | G30: 0
E31: 4.7 | F31: микробиология | G31: 0
E32: 5 | F32: Комментарии | G32: нет
E34: * | F34: Раскрывается не позднее 30 дней со дня сдачи годового бухгалтерского баланса в налоговые органы.
E35: ** | F35: Учитывать любое нарушение системы.

Sheet ВО показатели
D6: =codeTemplates -> Код шаблона: JKH.OPEN.INFO.BALANCE.VO
D7: Список листов
D8: Информация об основных показателях финансово-хозяйственной деятельности регулируемых организаций, включая структуру основных производственных затрат (в части регулируемой деятельности) *
D9: =IF(org="","",IF(fil="",org,org & " (" & fil & ")")) -> ММПКХ
E12: № п/п | F12: Наименование показателя | G12: Единица измерения | H12: Значение
E13: 1 | F13: =E13+1 -> 2 | G13: =F13+1 -> 3 | H13: =G13+1 -> 4
E14: 1 | F14: Вид регулируемой деятельности | G14: x | H14: =IF(activity = "","",activity) -> 
E15: 2 | F15: Выручка от регулируемой деятельности | G15: тыс.руб. | H15: 92750.8
E16: 3 | F16: Себестоимость производимых товаров (оказываемых услуг) по регулируемому виду деятельности (тыс. рублей), включающей: | G16: тыс.руб. | H16: =SUM(H17:H18,H21,H31:H35,H38,H41,H48:H49) -> 99494.80424
E17: 3.1 | F17: Расходы на оплату услуг по перекачке и очистке сточных вод другими организациями | G17: тыс.руб. | H17: =1458217.42/1000 -> 1458.21742
E18: 3.2 | F18: Расходы на покупаемую электрическую энергию (мощность), потребляемую оборудованием, используемым в технологическом процессе: | G18: тыс.руб. | H18: =15781801.84/1000 -> 15781.80184
E19: 3.2.1 | F19: средневзвешенная стоимость 1 кВт*ч (с учетом мощности) | G19: руб. | H19: =nerr(H18/H20) -> 
E20: 3.2.2 | F20: объем приобретенной электрической энергии | G20: тыс. кВт*ч | H20: =4492067/1000+189580/1000+167911/1000+73971/1000 -> 4923.529
E21: 3.3 | F21: Реагенты | G21: тыс.руб. | H21: =252170.35/1000 -> 252.17035
E22: 3.3.1 | F22: Количество использованного реагента, в том числе: | G22: тонн | H22: =SUM(H23:H30) -> 8.2324
E23: 3.3.1.1 | F23: хлора (всех видов) | G23: тонн | H23: 0
E24: 3.3.1.2 | F24: алюминия сульфата | G24: тонн | H24: 0
E25: 3.3.1.3 | F25: гипохлорита натрия | G25: тонн | H25: 0
E26: 3.3.1.4 | F26: гипохлорита кальция | G26: тонн | H26: 0
E27: 3.3.1.5 | F27: аммиака | G27: тонн | H27: 0
E28: 3.3.1.6 | F28: активированного угля | G28: тонн | H28: 0
E29: 3.3.1.7 | F29: коагулянтов и флокулянтов | G29: тонн | H29: 0
E30: 3.3.1.8 | F30: прочих | G30: тонн | H30: 8.2324
E31: 3.4 | F31: Расходы на оплату труда основного производственного персонала | G31: тыс.руб. | H31: =(21996303.35+71576.26)/1000 -> 22067.87961
E32: 3.5 | F32: Отчисления на социальные нужды основного производственного персонала | G32: тыс.руб. | H32: =(42949.65+7318339.29)/1000 -> 7361.28894
E33: 3.6 | F33: Расходы на амортизацию основных производственных средств | G33: тыс.руб. | H33: =8192320.57/1000 -> 8192.32057
E34: 3.7 | F34: Расходы на аренду имущества, используемого в технологическом процессе | G34: тыс.руб. | H34: =36000/1000 -> 36
E35: 3.8 | F35: Общепроизводственные (цеховые) расходы | G35: тыс.руб. | H35: 23075.6
E36: 3.8.1 | F36: расходы на оплату труда | G36: тыс.руб. | H36: =(1198063.81)/1000 -> 1198.06381
E37: 3.8.2 | F37: отчисления на социальные нужды | G37: тыс.руб. | H37: =(7759.94+1317012.19)/1000 -> 1324.77213
E38: 3.9 | F38: Общехозяйственные (управленческие) расходы | G38: тыс.руб. | H38: =13955903.37/1000 -> 13955.90337
E39: 3.9.1 | F39: расходы на оплату труда | G39: тыс.руб. | H39: 6797.55
E40: 3.9.2 | F40: отчисления на социальные нужды | G40: тыс.руб. | H40: 2277.9
E41: 3.10 | F41: Ремонт и техническое обслуживание основных производственных средств, в том числе: | G41: тыс.руб. | H41: =H42+H43 -> 5910.00976
E42: 3.10.1 | F42: капитальный ремонт основных средств | G42: тыс.руб. | H42: =72796.08/1000 -> 72.79608
E43: 3.10.2 | F43: текущий ремонт основных средств | G43: тыс.руб. | H43: =(946340.06-1334798.87+1420158.33+4805514.16)/1000 -> 5837.21368
E44: 3.10.3 | F44: заработная плата ремонтного персонала | G44: тыс.руб. | H44: 0
E45: 3.10.4 | F45: среднемесячная оплата труда рабочего 1 разряда (в случае отсутствия тарифной сетки - средняя оплата труда рабочих) | G45: тыс.руб. | H45: 0
E46: 3.10.5 | F46: численность ремонтного персонала на конец отчетного периода | G46: чел | H46: 0
E47: 3.10.6 | F47: отчисления на соц. нужды от заработной платы ремонтного персонала | G47: тыс.руб. | H47: 0
E48: 3.11 | F48: Расходы на услуги производственного характера, выполняемые по договорам с организациями на проведение регламентных работ в рамках технологического процесса | G48: тыс.руб. | H48: =(1254933.05+148679.33)/1000 -> 1403.61238
F49: Добавить запись
E50: 4 | F50: Валовая прибыль от продажи товаров и услуг по регулируемому виду деятельности (водоотведение и (или) очистка сточных вод) | G50: тыс.руб. | H50: =H15-H16 -> -6744.00424
E51: 5 | F51: Чистая прибыль по регулируемому виду деятельности | G51: тыс.руб. | H51: =H50 -> -6744.00424
E52: 5.1 | F52: в том числе чистая прибыль на финансирование мероприятий, предусмотренных инвестиционной программой по развитию системы водоотведения и (или) объектов по очистке сточных вод | G52: тыс.руб. | H52: 0
E53: 6 | F53: Изменение стоимости основных фондов | G53: тыс.руб. | H53: =H54+H55-H56 -> 158583.34
E54: 6.1 | F54: стоимость основных фондов на начало отчетного периода | G54: тыс.руб. | H54: 111608.87
E55: 6.2 | F55: стоимость введенных в эксплуатацию основных фондов | G55: тыс.руб. | H55: 47036.99
E56: 6.3 | F56: стоимость выведенных из эксплуатации основных фондов | G56: тыс.руб. | H56: 62.52
E57: 7 | F57: Объем сточных вод, принятых от потребителей оказываемых услуг | G57: тыс.куб.м | H57: 10788.1
E58: 8 | F58: Объем сточных вод, принятых от других регулируемых организаций в сфере водоотведения и (или) очистки сточных вод | G58: тыс.куб.м | H58: 0
E59: 9 | F59: Объем сточных вод, пропущенных через очистные сооружения | G59: тыс.куб.м | H59: 10632.2
E60: 10 | F60: Протяженность самотечных канализационных сетей (в однотрубном исчислении) | G60: км | H60: 180.02
E61: 11 | F61: Протяженность напорных канализационных сетей (в однотрубном исчислении) | G61: км | H61: =(400+3057+38648.54+4375.9)/1000 -> 46.48144
E62: 12 | F62: Количество насосных станций | G62: ед. | H62: 27
E63: 13 | F63: Количество очистных сооружений | G63: ед. | H63: 1
E64: 14 | F64: Среднесписочная численность основного производственного персонала | G64: чел | H64: 168
E65: 15 | F65: Комментарии | H65: нет
E67: * Раскрывается не позднее 30 дней со дня сдачи годового бухгалтерского баланса в налоговые органы

Sheet ВО показатели (2)
D6: =codeTemplates -> Код шаблона: JKH.OPEN.INFO.BALANCE.VO
D7: Список листов
D8: Информация об объемах товаров и услуг, их стоимости и способах приобретения *
D9: =IF(org="","",IF(fil="",org,org & " (" & fil & ")")) -> ММПКХ
E12: № п/п | F12: Наименование товара/услуги | H12: Единица измерения | I12: Значение
E13: 1 | F13: =E13+1 -> 2 | H13: =F13+1 -> 3 | I13: =H13+1 -> 4
E14: 1 | F14: Расходы на капитальный ремонт основных производственных средств | I14: =SUMIF(G15:G23,G15,I15:I23) -> 72.79608
E15: 1.0 | G15: Стоимость
G16: Кол-во
G17: Стоимость 1й единицы с учетом доставки (транспортировки)
G18: Способ приобретения
E19: 1.1 | G19: Стоимость | H19: тыс.руб. | I19: ='[1]ВО показатели'!H42 -> 72.79608
G20: Кол-во | H20: шт | I20: 1
G21: Стоимость 1й единицы с учетом доставки (транспортировки) | H21: тыс.руб. | I21: =IF(I20="",0,IF(I20=0,0,I19/I20)) -> 72.79608
G22: Способ приобретения | H22: x | I22: прочее
F23: Добавить запись
E24: 2 | F24: Расходы на текущий ремонт основных производственных средств | I24: =SUMIF(G25:G33,G25,I25:I33) -> 5837.21368
E25: 2.0 | G25: Стоимость
G26: Кол-во
G27: Стоимость 1й единицы с учетом доставки (транспортировки)
G28: Способ приобретения
E29: 2.1 | G29: Стоимость | H29: тыс.руб. | I29: ='[1]ВО показатели'!H43 -> 5837.21368
G30: Кол-во | H30: шт | I30: 1
G31: Стоимость 1й единицы с учетом доставки (транспортировки) | H31: тыс.руб. | I31: =IF(I30="",0,IF(I30=0,0,I29/I30)) -> 5837.21368
G32: Способ приобретения | H32: x | I32: прочее
F33: Добавить запись
E34: 3 | F34: Расходы на услуги производственного характера, выполняемые по договорам с организациями на проведение регламентных работ в рамках технологического процесса | I34: =SUMIF(G35:G43,G35,I35:I43) -> 1403.61238
E35: 3.0 | G35: Стоимость
G36: Кол-во
G37: Стоимость 1й единицы с учетом доставки (транспортировки)
G38: Способ приобретения
E39: 3.1 | G39: Стоимость | H39: тыс.руб. | I39: ='[1]ВО показатели'!H48 -> 1403.61238
G40: Кол-во | H40: шт | I40: 1
G41: Стоимость 1й единицы с учетом доставки (транспортировки) | H41: тыс.руб. | I41: =IF(I40="",0,IF(I40=0,0,I39/I40)) -> 1403.61238
G42: Способ приобретения | H42: x | I42: прямые договора без торгов
F43: Добавить запись
E45: * Раскрывается не позднее 30 дней со дня сдачи годового бухгалтерского баланса в налоговые органы

Sheet Ссылки на публикации (2)
D4: =codeTemplates -> Код шаблона: JKH.OPEN.INFO.BALANCE.VO
D5: Список листов
D6: Ссылки на публикации в других источниках
D7: =IF(org="","",IF(fil="",org,org & " (" & fil & ")")) -> ММПКХ
E10: Указание на официальное печатное издание и (или) адрес сайта в сети Интернет, которые используются для размещения раскрываемой информации *
E12: № п/п | F12: Содержание пункта | G12: Адрес сайта в сети Интернет | H12: Печатное издание
E13: 1 | F13: =E13+1 -> 2 | G13: 3 | H13: 4
E14: 1 | F14: Информация об основных потребительских характеристиках регулируемых товаров и услуг регулируемых организаций и их соответствии государственным и иным утвержденным стандартам качества | G14: нет | H14: нет
E15: 2 | F15: Информация об инвестиционных программах и отчетах об их реализации **
E16: 3 | F16: Информация об основных показателях финансово-хозяйственной деятельности регулируемых организаций, включая структуру основных производственных затрат (в части регулируемой деятельности) | G16: www.ozerskadm.ru | H16: нет
E17: 4 | F17: Информация о расходах на капитальный и текущий ремонт, услуги производственного характера | G17: нет | H17: нет
E18: 5 | F18: Сведения об источнике публикации годовой бухгалтерской отчетности, включая бухгалтерский баланс и приложения к нему *** | G18: нет | H18: нет
D19: end | F19: Добавить запись
E21: * Источники публикации сообщаются в течение 5 рабочих дней со дня опубликования информации в официальных печатных изданиях (размещения на сайте в сети Интернет). Информация раскрывается не позднее 30 дней со дня сдачи годового бухгалтерского баланса в налоговые органы.
E22: ** Информация подлежит публикованию в официальных печатных изданиях (со ссылкой на адрес сайта в сети Интернет). В случае, если информация публикуется на сайте регулирующего органа, достаточно указать официальное печатное издание. В случае, если информация публикуется на сайте организации, необходимо указать и печатное издание, и адрес сайта в сети Интернет.
E23: *** Раскрывается в случае, если выручка от регулируемой деятельности превышает 80% совокупной выручки за отчетный год.

Sheet Титульный (3)
A1: =region_name -> Челябинская область | B1: =IF(god="","Не определено",god) -> 2011 | C1: =org&"_INN:"&inn&"_KPP:"&kpp -> ММПКХ_INN:7422000570_KPP:742201001
A2: =IF(org="","Не определено",org) -> ММПКХ | B2: =IF(inn="","Не определено",inn) -> 7422000570 | H2: =codeTemplate -> Код шаблона: JKH.OPEN.INFO.BALANCE.HVS
G3: =version -> Версия 4.1
A4: =IF(fil="","Не определено",fil) -> Не определено | B4: =IF(kpp="","Не определено",kpp) -> 742201001 | D4: Показатели подлежащие раскрытию в сфере холодного водоснабжения (4)
E7: Субъект РФ | G7: Челябинская область
E9: Внимание! В зависимости от выбранного значения в поле "Публикация" изменяется содержание и количество листов!
E10: Публикация | G10: На сайте регулирующего органа
E12: Происходило ли изменение тарифа в текущем году | G12: нет
E14: Отчетный период (факт) | G14: 2011
A16: L0 | B16: Признак филиала | E16: Является ли данное юридическое лицо подразделением (филиалом) другой организации | G16: нет
A19: 66 | E19: Дата последнего обновления реестра организаций: 29.03.2012 10:49:22
E20: Наименование ??? организации | G20: ММПКХ
E22: Наименование ПОДРАЗДЕЛЕНИЯ
E24: ИНН ??? | G24: 7422000570
E25: КПП ??? | G25: 742201001
E27: Вид деятельности | G27: Оказание услуг в сфере водоснабжения
E29: Превышает ли выручка от регулируемой деятельности 80% совокупной выручки за отчетный год | G29: нет
E31: НДС | G31: отчетность представлена без НДС
E33: Организация выполняет инвестиционную программу | G33: нет
E35: Система коммунальной инфраструктуры | F35: Условный порядковый номер | G35: 2
F36: Описание | G36: Город Озерск (ЗАТО)
E39: Дата последнего обновления реестра МР/МО: 29.03.2012 11:09:59
E40: Муниципальный район, на территории которого размещена система коммунальной инфраструктуры | F40: Муниципальное образование, на территории которого размещена система коммунальной инфраструктуры
E41: Наименование МР | F41: Наименование МО | G41: ОКТМО
E42: Город Озерск (ЗАТО) | F42: Город Озерск (ЗАТО) | G42: 75743000
F43: Добавить МО
E44: Добавить МР
E46: Адрес организации
E47: Юридический адрес: | G47: 456785, г.Озерск, Челябинская обл., ул.Матросова 44
E48: Почтовый адрес: | G48: 456785, г.Озерск, Челябинская обл., ул.Матросова 44
E50: Руководитель
E51: Фамилия, имя, отчество: | G51: Новиков Константин Иванович
E52: (код) номер телефона: | G52: 8(35130)43405, приемная 8(35130)46774
E54: Главный бухгалтер
E55: Фамилия, имя, отчество: | G55: Кудрявцева Ольга Вениаминовна
E56: (код) номер телефона: | G56: 8(35130)45390
E58: Должностное лицо, ответственное за составление формы
E59: Фамилия, имя, отчество: | G59: Лаврентьева Ольга Андреевна
E60: Должность: | G60: экономист ПЭО
E61: (код) номер телефона: | G61: 8(35130)46705
E62: e-mail: | G62: economist.olga@mail.ru

Sheet ХВС характеристики
D6: =codeTemplate -> Код шаблона: JKH.OPEN.INFO.BALANCE.HVS
D7: Список листов
D8: Информация об основных потребительских характеристиках регулируемых товаров и услуг регулируемых организаций и их соответствии государственным и иным утвержденным стандартам качества *
D9: =IF(org="","",IF(fil="",org,org & " (" & fil & ")")) -> ММПКХ
E12: № п/п | F12: Наименование показателя | G12: Значение
E13: 1 | F13: 2 | G13: 3
E14: 1 | F14: Количество аварий на системах холодного водоснабжения (единиц на км) ** | G14: 0
E15: 2 | F15: Количество случаев подачи холодной воды по графику (менее 24 часов в сутки) | G15: 0
E16: 2.1 | F16: доля потребителей, затронутых ограничениями подачи холодной воды | G16: 0
E17: 3 | F17: Общее количество проведенных проб по следующим показателям: | G17: =SUM(G18:G20,G23:G24) -> 17597
E18: 3.1 | F18: Мутность | G18: 2576
E19: 3.2 | F19: Цветность | G19: 2576
E20: 3.3 | F20: Хлор остаточный общий, в том числе | G20: 9504
E21: 3.3.1 | F21: хлор остаточный связанный | G21: 8760
E22: 3.3.2 | F22: хлор остаточный свободный | G22: 744
E23: 3.4 | F23: Общие колиформные бактерии | G23: 2941
E24: 3.5 | F24: Термотолерантные колиформные бактерии | G24: 0
E25: 4 | F25: Количество проведенных проб, выявивших несоответствие холодной воды санитарным нормам (предельно допустимой концентрации), по следующим показателям: | G25: =SUM(G26:G30) -> 0
E26: 4.1 | F26: мутность | G26: 0
E27: 4.2 | F27: цветность | G27: 0
E28: 4.3 | F28: хлор остаточный связанный и хлор остаточный свободный | G28: 0
E29: 4.4 | F29: общие колиформные бактерии | G29: 0
E30: 4.5 | F30: термотолерантные колиформные бактерии | G30: 0
E31: 5 | F31: Комментарии | G31: нет
E33: * | F33: Раскрывается не позднее 30 дней со дня сдачи годового бухгалтерского баланса в налоговые органы.
E34: ** | F34: Учитывать любое нарушение системы.

Sheet ХВС показатели
D6: =codeTemplate -> Код шаблона: JKH.OPEN.INFO.BALANCE.HVS
D7: Список листов
D8: Информация об основных показателях финансово-хозяйственной деятельности регулируемых организаций, включая структуру основных производственных затрат (в части регулируемой деятельности) *
D9: =IF(org="","",IF(fil="",org,org & " (" & fil & ")")) -> ММПКХ
E12: № п/п | F12: Наименование показателя | G12: Единица измерения | H12: Значение
E13: 1 | F13: =E13+1 -> 2 | G13: =F13+1 -> 3 | H13: =G13+1 -> 4
E14: 1 | F14: Вид регулируемой деятельности | G14: x | H14: =IF(activity = "","",activity) -> Оказание услуг в сфере водоснабжения
E15: 2 | F15: Выручка от регулируемой деятельности | G15: тыс.руб. | H15: 111070.7
E16: 3 | F16: Себестоимость производимых товаров (оказываемых услуг) по регулируемому виду деятельности, в том числе: | G16: тыс.руб. | H16: =H17+H21+H24+SUM(H34:H38)+H41+H44+SUM(H51:H52) -> 101102.0995
E17: 3.1 | F17: Покупная вода, в том числе: | G17: тыс.руб. | H17: =SUM(H18:H20) -> 1641.4098
E18: 3.1.1 | F18: технического качества | G18: тыс.руб. | H18: 0
E19: 3.1.2 | F19: питьевого качества | G19: тыс.руб. | H19: =1641409.8/1000 -> 1641.4098
E20: 3.1.3 | F20: покупка потерь | G20: тыс.руб. | H20: 0
E21: 3.2 | F21: Расходы на покупаемую электрическую энергию (мощность), потребляемую оборудованием, используемым в технологическом процессе: | G21: тыс.руб. | H21: =24082065.49/1000 -> 24082.06549
E22: 3.2.1 | F22: средневзвешенная стоимость 1 кВт*ч (с учетом мощности) | G22: руб. | H22: =nerr(H21/H23) -> 
E23: 3.2.2 | F23: объем приобретенной электрической энергии | G23: тыс.кВт*ч | H23: =8426175/1000+26705/1000 -> 8452.88
E24: 3.3 | F24: Расходы на реагенты: | G24: тыс.руб. | H24: =1459126.55/1000+407867.83/1000 -> 1866.99438
E25: 3.3.1 | F25: Количество использованного реагента, в т.ч.: | G25: тонн | H25: =SUM(H26:H33) -> 60.95045
E26: 3.3.1.1 | F26: хлора (всех видов) | G26: тонн | H26: =43.64 -> 43.64
E27: 3.3.1.2 | F27: алюминия сульфата | G27: тонн | H27: 0
E28: 3.3.1.3 | F28: гипохлорита натрия | G28: тонн | H28: =(275+330+200+400+800+1500+700+1000+1000)/1000 -> 6.205
E29: 3.3.1.4 | F29: гипохлорита кальция | G29: тонн | H29: 0
E30: 3.3.1.5 | F30: аммиака | G30: тонн | H30: =(0.9+0.9)/1000 -> 0.0018
E31: 3.3.1.6 | F31: активированного угля | G31: тонн | H31: =24/1000 -> 0.024
E32: 3.3.1.7 | F32: коагулянтов и флокулянтов | G32: тонн | H32: 0
E33: 3.3.1.8 | F33: прочих | G33: тонн | H33: =(575+500+300+200+575+925+1575+400+1000+5000+0.25+5+5+5.4+5+5+2+2)/1000 -> 11.07965
E34: 3.4 | F34: Расходы на оплату труда | G34: тыс.руб. | H34: =(12715830.83+45517.14)/1000 -> 12761.34797
E35: 3.5 | F35: Отчисления на социальные нужды основного производственного персонала | G35: тыс.руб. | H35: =(25193.84+4288989.08)/1000 -> 4314.18292
E36: 3.6 | F36: Расходы на амортизацию основных производственных средств | G36: тыс.руб. | H36: =11715235.04/1000 -> 11715.23504
E37: 3.7 | F37: Расходы на аренду имущества, используемого в технологическом процессе | G37: тыс.руб. | H37: =24000/1000 -> 24
E38: 3.8 | F38: Общепроизводственные (цеховые) расходы | G38: тыс.руб. | H38: 26390.75
E39: 3.8.1 | F39: расходы на оплату труда | G39: тыс.руб. | H39: =(4282320.85+15755.37)/1000 -> 4298.07622
E40: 3.8.2 | F40: отчисления на социальные нужды | G40: тыс.руб. | H40: =(8532.98+1450452.79)/1000 -> 1458.98577
E41: 3.9 | F41: Общехозяйственные (управленческие) расходы | G41: тыс.руб. | H41: =11516532.88/1000 -> 11516.53288
E42: 3.9.1 | F42: расходы на оплату труда | G42: тыс.руб. | H42: =5609.4 -> 5609.4
E43: 3.9.2 | F43: отчисления на социальные нужды | G43: тыс.руб. | H43: =1879.74 -> 1879.74
E44: 3.10 | F44: Ремонт и техническое обслуживание основных производственных средств, в том числе: | G44: тыс.руб. | H44: =H45+H46+H47+H50 -> 6196.58057
E45: 3.10.1 | F45: капитальный ремонт основных средств | G45: тыс.руб. | H45: =566128.39/1000 -> 566.12839
E46: 3.10.2 | F46: текущий ремонт основных средств | G46: тыс.руб. | H46: =(637128.39+1126772.72+3866551.07)/1000 -> 5630.45218
E47: 3.10.3 | F47: заработная плата ремонтного персонала | G47: тыс.руб. | H47: 0
E48: 3.10.4 | F48: среднемесячная оплата труда рабочего 1 разряда (в случае отсутствия тарифной сетки - средняя оплата труда рабочих) | G48: тыс.руб. | H48: 0
E49: 3.10.5 | F49: численность ремонтного персонала на конец отчетного периода | G49: чел. | H49: 0
E50: 3.10.6 | F50: отчисления на соц. нужды от заработной платы ремонтного персонала | G50: тыс.руб. | H50: 0
E51: 3.11 | F51: Расходы на услуги производственного характера, выполняемые по договорам с организациями на проведение регламентных работ в рамках технологического процесса | G51: тыс.руб. | H51: =593000.45/1000 -> 593.00045
F52: Добавить запись
E53: 4 | F53: Валовая прибыль от продажи товаров и услуг по регулируемому виду деятельности (холодное водоснабжение) | G53: тыс.руб. | H53: =H15-H16 -> 9968.6005
E54: 5 | F54: Чистая прибыль по регулируемому виду деятельности, в том числе: | G54: тыс.руб. | H54: =H53-H53*0.2 -> 7974.8804
E55: 5.1 | F55: чистая прибыль на финансирование мероприятий, предусмотренных инвестиционной программой по развитию системы холодного водоснабжения | G55: тыс.руб. | H55: 0
E56: 6 | F56: Изменение стоимости основных фондов | G56: тыс.руб. | H56: =H57+H58-H59 -> 217812.58
E57: 6.1 | F57: стоимость основных фондов на начало отчетного периода | G57: тыс.руб. | H57: =220240.44 -> 220240.44
E58: 6.2 | F58: стоимость введенных в эксплуатацию основных фондов | G58: тыс.руб. | H58: =429.25 -> 429.25
E59: 6.3 | F59: стоимость выведенных из эксплуатации основных фондов | G59: тыс.руб. | H59: 2857.11
E60: 7 | F60: Поднято воды, в том числе: | G60: тыс.куб.м | H60: =SUM(H61:H62) -> 21957.5
E61: 7.1 | F61: из подземных водоисточников | G61: тыс.куб.м | H61: 0
E62: 7.2 | F62: из поверхностных водоисточников | G62: тыс.куб.м | H62: =21762+195.5 -> 21957.5
E63: 8 | F63: Получено воды со стороны, в том числе: | G63: тыс.куб.м | H63: =SUM(H64:H65) -> 235.159
E64: 8.1 | F64: технического качества | G64: тыс.куб.м | H64: 0
E65: 8.2 | F65: питьевого качества | G65: тыс.куб.м | H65: =235.159 -> 235.159
E66: 9 | F66: Объем воды, пропущенной через очистные сооружения | G66: тыс.куб.м | H66: =H62 -> 21957.5
E67: 10 | F67: Объем отпущенной потребителям воды, в том числе: | G67: тыс.куб.м | H67: =SUM(H68:H69) -> 19267.63
E68: 10.1 | F68: по приборам учета | G68: тыс.куб.м | H68: 11560.578
E69: 10.2 | F69: по нормативам потребления | G69: тыс.куб.м | H69: 7707.052
E70: 11 | F70: Потери воды в сетях (от забора воды), в том числе: | G70: % | H70: 13.2
E71: 11.1 | F71: нормативные | G71: % | H71: 0
E72: 11.2 | F72: фактические (разница между забором и реализацией) | G72: % | H72: 13.2
E73: 12 | F73: Протяженность водопроводных сетей (в однотрубном исчислении) | G73: км | H73: 252.6
E74: 13 | F74: Количество скважин | G74: ед. | H74: 2
E75: 14 | F75: Количество подкачивающих насосных станций | G75: ед. | H75: 24
E76: 15 | F76: Среднесписочная численность основного производственного персонала (человек) | G76: чел. | H76: 99
E77: 16 | F77: Удельный расход электроэнергии на подачу воды в сеть, в том числе: | G77: кВт·ч/куб.м | H77: =SUM(H78:H80) -> 0.4010885092
E78: 16.1 | F78: забор воды | G78: кВт·ч/куб.м | H78: =2535.864/H60 -> 0.1154896505
E79: 16.2 | F79: очистка | G79: кВт·ч/куб.м | H79: =3381.152/H66 -> 0.1539862006
E80: 16.2 | F80: транспортировка | G80: кВт·ч/куб.м | H80: =2535.864/H67 -> 0.1316126581
E81: 17 | F81: Расход воды на коммунально-бытовые нужды ОКК | G81: тыс.куб.м | H81: 1800
E82: 18 | F82: Расход воды на технологические нужды предприятия | G82: тыс.куб.м | H82: =SUM(H83:H85) -> 1800
E83: 18.1 | F83: на очистные сооружения | G83: тыс.куб.м | H83: =720 -> 720
E84: 18.2 | F84: на промывку сетей | G84: тыс.куб.м | H84: 900
E85: 18.3 | F85: прочие | G85: тыс.куб.м | H85: 180
E86: 19 | F86: Показатель использования производственных объектов (по объему перекачки) по отношению к пиковому дню отчетного года | G86: % | H86: 46
E87: 20 | F87: Комментарии | H87: нет
E89: * Раскрывается не позднее 30 дней со дня сдачи годового бухгалтерского баланса в налоговые органы

Sheet ХВС показатели (2)
D6: =codeTemplate -> Код шаблона: JKH.OPEN.INFO.BALANCE.HVS
D7: Список листов
D8: Информация об объемах товаров и услуг, их стоимости и способах приобретения *
D9: =IF(org="","",IF(fil="",org,org & " (" & fil & ")")) -> ММПКХ
E12: № п/п | F12: Наименование товара/услуги | H12: Единица измерения | I12: Значение
E13: 1 | F13: =E13+1 -> 2 | H13: =F13+1 -> 3 | I13: =H13+1 -> 4
E14: 1 | F14: Расходы на капитальный ремонт основных производственных средств | I14: =SUMIF(G15:G23,G15,I15:I23) -> 566.12839
E15: 1.0 | G15: Стоимость
G16: Кол-во
G17: Стоимость 1й единицы с учетом доставки (транспортировки)
G18: Способ приобретения
E19: 1.1 | G19: Стоимость | H19: тыс.руб. | I19: ='[2]ХВС показатели'!H45 -> 566.12839
G20: Кол-во | H20: шт | I20: 1
G21: Стоимость 1й единицы с учетом доставки (транспортировки) | H21: тыс.руб. | I21: =IF(I20="",0,IF(I20=0,0,I19/I20)) -> 566.12839
G22: Способ приобретения | H22: x | I22: прочее
F23: Добавить запись
E24: 2 | F24: Расходы на текущий ремонт основных производственных средств | I24: =SUMIF(G25:G33,G25,I25:I33) -> 5630.45218
E25: 2.0 | G25: Стоимость
G26: Кол-во
G27: Стоимость 1й единицы с учетом доставки (транспортировки)
G28: Способ приобретения
E29: 2.1 | G29: Стоимость | H29: тыс.руб. | I29: ='[2]ХВС показатели'!H46 -> 5630.45218
G30: Кол-во | H30: шт | I30: 1
G31: Стоимость 1й единицы с учетом доставки (транспортировки) | H31: тыс.руб. | I31: =IF(I30="",0,IF(I30=0,0,I29/I30)) -> 5630.45218
G32: Способ приобретения | H32: x | I32: прочее
F33: Добавить запись
E34: 3 | F34: Расходы на услуги производственного характера, выполняемые по договорам с организациями на проведение регламентных работ в рамках технологического процесса | I34: =SUMIF(G35:G43,G35,I35:I43) -> 593.00045
E35: 3.0 | G35: Стоимость
G36: Кол-во
G37: Стоимость 1й единицы с учетом доставки (транспортировки)
G38: Способ приобретения
E39: 3.1 | G39: Стоимость | H39: тыс.руб. | I39: ='[2]ХВС показатели'!H51 -> 593.00045
G40: Кол-во | H40: шт | I40: 1
G41: Стоимость 1й единицы с учетом доставки (транспортировки) | H41: тыс.руб. | I41: =IF(I40="",0,IF(I40=0,0,I39/I40)) -> 593.00045
G42: Способ приобретения | H42: x | I42: прямые договора без торгов
F43: Добавить запись
E45: * Раскрывается не позднее 30 дней со дня сдачи годового бухгалтерского баланса в налоговые органы

Sheet Ссылки на публикации (3)
D4: =codeTemplate -> Код шаблона: JKH.OPEN.INFO.BALANCE.HVS
D5: Список листов
D6: Ссылки на публикации в других источниках
D7: =IF(org="","",IF(fil="",org,org & " (" & fil & ")")) -> ММПКХ
E10: Указание на официальное печатное издание и (или) адрес сайта в сети Интернет, которые используются для размещения раскрываемой информации *
E12: № п/п | F12: Содержание пункта | G12: Адрес сайта в сети Интернет | H12: Печатное издание
E13: 1 | F13: =E13+1 -> 2 | G13: 3 | H13: 4
E14: 1 | F14: Информация об основных потребительских характеристиках регулируемых товаров и услуг регулируемых организаций и их соответствии государственным и иным утвержденным стандартам качества | G14: нет | H14: нет
E15: 2 | F15: Информация об инвестиционных программах и отчетах об их реализации **
E16: 3 | F16: Информация об основных показателях финансово-хозяйственной деятельности регулируемых организаций, включая структуру основных производственных затрат (в части регулируемой деятельности) | G16: www.ozerskadm.ru | H16: нет
E17: 4 | F17: Информация о расходах на капитальный и текущий ремонт, услуги производственного характера | G17: нет | H17: нет
E18: 5 | F18: Сведения об источнике публикации годовой бухгалтерской отчетности, включая бухгалтерский баланс и приложения к нему *** | G18: нет | H18: нет
D19: end | F19: Добавить запись
E21: * Источники публикации сообщаются в течение 5 рабочих дней со дня опубликования информации в официальных печатных изданиях (размещения на сайте в сети Интернет). Информация раскрывается не позднее 30 дней со дня сдачи годового бухгалтерского баланса в налоговые органы.
E22: ** Информация подлежит публикованию в официальных печатных изданиях (со ссылкой на адрес сайта в сети Интернет). В случае, если информация публикуется на сайте регулирующего органа, достаточно указать официальное печатное издание. В случае, если информация публикуется на сайте организации, необходимо указать и печатное издание, и адрес сайта в сети Интернет.
E23: *** Раскрывается в случае, если выручка от регулируемой деятельности превышает 80% совокупной выручки за отчетный год.

Sheet AllSheetsInThisWorkbook (hidden)
A1: Расчетные листы | B1: Скрытые листы
A2: Инструкция | B2: AllSheetsInThisWorkbook
A3: Выбор субъекта РФ | B3: et_union
A4: Титульный | B4: TEHSHEET
A5: Список листов | B5: REESTR_ORG
A6: ТС характеристики | B6: REESTR_FILTERED
A7: ТС инвестиции | B7: REESTR_MO
A8: ТС показатели | B8: modHyp
A9: ТС показатели (2) | B9: modChange
A10: Ссылки на публикации | B10: modfrmReestr
A11: Комментарии | B11: modPROV
A12: Проверка | B12: modCommandButton
B13: modTitleSheetHeaders
B14: modServiceModule
B15: modClassifierValidate
B16: modWindowClipboard
B17: modInfo
B18: modfrmDateChoose
B19: modReestr
B20: Паспорт

Sheet et_union (hidden)
A2: add_INDEX_range
H4: тыс.руб.
A7: add_INDEX_range_2
G9: Стоимость | H9: тыс.руб.
G10: Объем
G11: Стоимость 1й единицы объема с учетом доставки (транспортировки) | H11: тыс.руб. | I11: =nerr(I9/I10) -> 
G12: Способ приобретения | H12: x
A15: add_INDEX_2_range
G17: Стоимость | H17: тыс.руб.
G18: Кол-во
G19: Стоимость 1й единицы с учетом доставки (транспортировки) | H19: тыс.руб. | I19: =IF(I18="",0,IF(I18=0,0,I17/I18)) -> 0
G20: Способ приобретения | H20: x
A22: add_HYPERLINK_range
A27: add_MR_range
A28: add_MO_range
F31: Добавить МО

Sheet TEHSHEET (hidden)
A1: Логика | B1: Кварталы | C1: Года | D1: Единица измерения | E1: Месяц-текст | F1: Месяц-число | G1: День-число | H1: Регионы | I1: Вид деятельности | J1: Источники финансирования | K1: Виды топлива | M1: НДС /kind_of_NDS/ | N1: цель инвестиционной программы /objective_of_IPR/ | O1: цель инвестиционной программы /kind_of_purchase_method/ | Q1: XML_ORG_LIST_TAG_NAMES | CS1: 5.86
A2: да | B2: I квартал | C2: 2006 | D2: тыс.руб. | E2: январь | F2: 01 | G2: 01 | H2: Алтайский край | I2: Оказание услуг в сфере водоотведения и очистки сточных вод | J2: кредиты банков | K2: газ природный по регулируемой цене | L2: тыс. м3 | M2: отчетность представлена без НДС | N2: автоматизация (с уменьшением штата) | O2: торги/аукционы | Q2: NSRF
A3: нет | B3: I полугодие | C3: 2007 | D3: млн.руб. | E3: февраль | F3: 02 | G3: 02 | H3: Амурская область | I3: Оказание услуг по перекачке | J3: кредиты иностранных банков | K3: газ природный по нерегулируемой цене | L3: тыс. м3 | M3: отчетность представлена с учетом освобождения от НДС | N3: уменьшение удельных затрат (повышение КПД) | O3: прямые договора без торгов | Q3: MR_NAME
B4: 9 месяцев | C4: 2008 | E4: март | F4: 03 | G4: 03 | H4: Архангельская область | I4: Оказание услуг в сфере водоснабжения, водоотведения и очистки сточных вод | J4: заемные ср-ва др. организаций | K4: газ сжиженный | L4: кг | M4: отчетность представлена с НДС | N4: уменьшение издержек на производство | O4: прочее | Q4: OKTMO_MR_NAME
B5: год | C5: 2009 | E5: апрель | F5: 04 | G5: 04 | H5: Астраханская область | J5: федеральный бюджет | K5: газовый конденсат | L5: тонны | N5: снижение аварийности | Q5: MO_NAME
C6: 2010 | E6: май | F6: 05 | G6: 05 | H6: Белгородская область | J6: бюджет субъекта РФ | K6: гшз | L6: тонны | N6: прочее | Q6: OKTMO_NAME
C7: 2011 | E7: июнь | F7: 06 | G7: 06 | H7: Брянская область | J7: бюджет муниципального образования | K7: мазут | L7: тонны | Q7: ORG_NAME
C8: 2012 | E8: июль | F8: 07 | G8: 07 | H8: Владимирская область | J8: ср-ва внебюджетных фондов | K8: нефть | L8: тонны | Q8: INN_NAME
C9: 2013 | E9: август | F9: 08 | G9: 08 | H9: Волгоградская область | J9: прибыль, направляемая на инвестиции | K9: дизельное топливо | L9: тонны | Q9: KPP_NAME
C10: 2014 | E10: сентябрь | F10: 09 | G10: 09 | H10: Вологодская область | J10: амортизация | K10: уголь бурый | L10: тонны | Q10: VDET_NAME
C11: 2015 | E11: октябрь | F11: 10 | G11: 10 | H11: Воронежская область | J11: инвестиционная надбавка к тарифу | K11: уголь каменный | L11: тонны
E12: ноябрь | F12: 11 | G12: 11 | H12: г.Байконур | J12: плата за подключение | K12: торф | L12: тонны | Q12: XML_MR_MO_OKTMO_LIST_TAG_NAMES
E13: декабрь | F13: 12 | G13: 12 | H13: г. Москва | J13: прочие средства | K13: дрова | L13: м3 | Q13: NSRF
G14: 13 | H14: г.Санкт-Петербург | K14: опил | L14: м3 | Q14: MR_NAME
G15: 14 | H15: Еврейская автономная область | K15: отходы березовые | L15: м3 | Q15: OKTMO_MR_NAME
G16: 15 | H16: Забайкальский край | K16: отходы осиновые | L16: м3 | Q16: MO_NAME
G17: 16 | H17: Ивановская область | K17: печное топливо | L17: тонны | Q17: OKTMO_NAME
G18: 17 | H18: Иркутская область | K18: пилеты | L18: тонны
G19: 18 | H19: Кабардино-Балкарская республика | K19: смола | L19: тонны
G20: 19 | H20: Калининградская область | K20: щепа | L20: м3
G21: 20 | H21: Калужская область | K21: горючий сланец | L21: тонны
G22: 21 | H22: Камчатский край | K22: керосин | L22: тонны
G23: 22 | H23: Карачаево-Черкесская республика | K23: кислородно-водородная смесь | L23: тыс. м3
G24: 23 | H24: Кемеровская область | K24: электроэнергия (НН) | L24: тыс.кВт ч
G25: 24 | H25: Кировская область | K25: электроэнергия (СН1) | L25: тыс.кВт ч
G26: 25 | H26: Костромская область | K26: электроэнергия (СН2) | L26: тыс.кВт ч
G27: 26 | H27: Краснодарский край | K27: электроэнергия (ВН) | L27: тыс.кВт ч
G28: 27 | H28: Красноярский край | K28: мощность | L28: тыс.кВт
G29: 28 | H29: Курганская область | K29: прочее
G30: 29 | H30: Курская область
G31: 30 | H31: Ленинградская область
G32: 31 | H32: Липецкая область
H33: Магаданская область
H34: Московская область
H35: Мурманская область
H36: Ненецкий автономный округ
H37: Нижегородская область
H38: Новгородская область
H39: Новосибирская область
H40: Омская область
H41: Оренбургская область
H42: Орловская область
H43: Пензенская область
H44: Пермский край
H45: Приморский край
H46: Псковская область
H47: Республика Адыгея
H48: Республика Алтай
H49: Республика Башкортостан
H50: Республика Бурятия
H51: Республика Дагестан
H52: Республика Ингушетия
H53: Республика Калмыкия
H54: Республика Карелия
H55: Республика Коми
H56: Республика Марий Эл
H57: Республика Мордовия
H58: Республика Саха (Якутия)
H59: Республика Северная Осетия-Алания
H60: Республика Татарстан
H61: Республика Тыва
H62: Республика Хакасия
H63: Ростовская область
H64: Рязанская область
H65: Самарская область
H66: Саратовская область
H67: Сахалинская область
H68: Свердловская область
H69: Смоленская область
H70: Ставропольский край
H71: Тамбовская область
H72: Тверская область
H73: Томская область
H74: Тульская область
H75: Тюменская область
H76: Удмуртская республика
H77: Ульяновская область
H78: Хабаровский край
H79: Ханты-Мансийский автономный округ
H80: Челябинская область
H81: Чеченская республика
H82: Чувашская республика
H83: Чукотский автономный округ
H84: Ямало-Ненецкий автономный округ
H85: Ярославская область

Sheet REESTR_ORG (hidden)
A1: № | B1: МР | C1: МО | D1: МО ОКТМО | E1: ОРГАНИЗАЦИЯ | F1: ИНН | G1: КПП | H1: ВИД ДЕЯТЕЛЬНОСТИ
A2: 1 | B2: Агаповский муниципальный район | C2: Агаповское | D2: 75603407 | E2: МП "ЖКХ "Энергия" | F2: 7425008930 | G2: 742501001 | H2: производство (некомбинированная выработка)+передача+сбыт
A3: 2 | B3: Агаповский муниципальный район | C3: Агаповское | D3: 75603407 | E3: ООО "ЖКХ Агаповское" | F3: 7425756580 | G3: 742501001 | H3: производство (некомбинированная выработка)+передача+сбыт
A4: 3 | B4: Агаповский муниципальный район | C4: Буранное | D4: 75603411 | E4: МП "ЖКХ-Буранный" | F4: 7425007598 | G4: 742501001 | H4: производство (некомбинированная выработка)+передача+сбыт
A5: 4 | B5: Агаповский муниципальный район | C5: Желтинское | D5: 75603422 | E5: МП ЖКХ "Желтинское" | F5: 7425007936 | G5: 742501001 | H5: производство (некомбинированная выработка)+передача+сбыт
A6: 5 | B6: Агаповский муниципальный район | C6: Магнитное | D6: 75603433 | E6: МП ЖКХ "Магнитное" | F6: 7425007943 | G6: 742501001 | H6: производство (некомбинированная выработка)+передача+сбыт
A7: 6 | B7: Агаповский муниципальный район | C7: Наровчатское | D7: 75603436 | E7: МП ЖКХ "Наровчатское" | F7: 7425008136 | G7: 742501001 | H7: производство (некомбинированная выработка)+передача+сбыт
A8: 7 | B8: Агаповский муниципальный район | C8: Первомайское | D8: 75603444 | E8: ГУНПО "Профессиональное училище №123" | F8: 7425002663 | G8: 742501001 | H8: производство (некомбинированная выработка)+передача+сбыт
A9: 8 | B9: Агаповский муниципальный район | C9: Первомайское | D9: 75603444 | E9: МУП "ЖКХ-Первомайский" | F9: 7425007975 | G9: 742501001 | H9: производство (некомбинированная выработка)+передача+сбыт
A10: 9 | B10: Агаповский муниципальный район | C10: Приморское | D10: 75603455 | E10: МУП "ЖКХ-Приморский" | F10: 7425004117 | G10: 742501001 | H10: производство (некомбинированная выработка)+передача+сбыт
A11: 10 | B11: Агаповский муниципальный район | C11: Светлогорское | D11: 75603466 | E11: ООО ЖКХ "Светлогорский" | F11: 7425757978 | G11: 742501001 | H11: производство (некомбинированная выработка)+передача+сбыт
A12: 11 | B12: Агаповский муниципальный район | C12: Черниговское | D12: 75603472 | E12: ООО "Черниговское" | F12: 7425758097 | G12: 742501001 | H12: производство (некомбинированная выработка)+передача+сбыт
A13: 12 | B13: Агаповский муниципальный район | C13: Янгельское | D13: 75603477 | E13: ООО "Сервис" | F13: 7425756597 | G13: 742501001 | H13: производство (некомбинированная выработка)+передача+сбыт
A14: 13 | B14: Аргаяшский муниципальный район | C14: Акбашевское | D14: 75606410 | E14: МУ "Управление Акбашевского ЖКХ" | F14: 7426007336 | G14: 742601001 | H14: производство (некомбинированная выработка)+передача+сбыт
A15: 14 | B15: Аргаяшский муниципальный район | C15: Аргаяшское | D15: 75606412 | E15: МУКП "Тепловик" | F15: 7426001493 | G15: 742601001 | H15: производство (некомбинированная выработка)+передача+сбыт
A16: 15 | B16: Аргаяшский муниципальный район | C16: Аргаяшское | D16: 75606412 | E16: МУП "Теплоэнергетик" | F16: 7426005716 | G16: 742601001 | H16: производство (некомбинированная выработка)+передача+сбыт
A17: 16 | B17: Аргаяшский муниципальный район | C17: Аргаяшское | D17: 75606412 | E17: Учреждение "Управление ЖКХ" | F17: 7426007103 | G17: 742601001 | H17: производство (некомбинированная выработка)+передача+сбыт
A18: 17 | B18: Аргаяшский муниципальный район | C18: Аязгуловское | D18: 75606420 | E18: МУ "Управление Аязгуловского ЖКХ" | F18: 7426007417 | G18: 742601001 | H18: производство (некомбинированная выработка)+передача+сбыт
A19: 18 | B19: Аргаяшский муниципальный район | C19: Байрамгуловское | D19: 75606433 | E19: МУ "Управление Байрамгуловского ЖКХ" | F19: 7426007287 | G19: 742601001 | H19: производство (некомбинированная выработка)+передача+сбыт
A20: 19 | B20: Аргаяшский муниципальный район | C20: Дербишевское | D20: 75606440 | E20: МУ "Управление Дербишевского ЖКХ" | F20: 7426007488 | G20: 742601001 | H20: производство (некомбинированная выработка)+передача+сбыт
A21: 20 | B21: Аргаяшский муниципальный район | C21: Ишалинское | D21: 75606445 | E21: МУ "Управление Ишалинского ЖКХ" | F21: 7426007248 | G21: 742601001 | H21: производство (некомбинированная выработка)+передача+сбыт
A22: 21 | B22: Аргаяшский муниципальный район | C22: Камышевское | D22: 75606450 | E22: МУ "Управление Камышевского ЖКХ" | F22: 7426007449 | G22: 742601001 | H22: производство (некомбинированная выработка)+передача+сбыт
A23: 22 | B23: Аргаяшский муниципальный район | C23: Кузнецкое | D23: 75606460 | E23: МУП "Управление Кузнецкого ЖКХ" | F23: 7426007424 | G23: 742601001 | H23: производство (некомбинированная выработка)+передача+сбыт
A24: 23 | B24: Аргаяшский муниципальный район | C24: Кузнецкое | D24: 75606460 | E24: ОАО МОЦ "Курорт Увильды" | F24: 7426005988 | G24: 742601001 | H24: производство (некомбинированная выработка)+передача+сбыт
A25: 24 | B25: Аргаяшский муниципальный район | C25: Кулуевское | D25: 75606470 | E25: МУП "Кулуевское ЖКХ" | F25: 7426006942 | G25: 742601001 | H25: производство (некомбинированная выработка)+передача+сбыт
A26: 25 | B26: Аргаяшский муниципальный район | C26: Норкинское | D26: 75606480 | E26: МУ "Управление Норкинского ЖКХ" | F26: 7426007456 | G26: 742601001 | H26: производство (некомбинированная выработка)+передача+сбыт
A27: 26 | B27: Аргаяшский муниципальный район | C27: Худайбердинское | D27: 75606490 | E27: МУ "Управление Худайбердинского ЖКХ" | F27: 7426007230 | G27: 742601001 | H27: производство (некомбинированная выработка)+передача+сбыт
A28: 27 | B28: Ашинский муниципальный район | C28: Город Аша | D28: 75609101 | E28: МУП "АШИНСКИЕ ТЕПЛОВЫЕ СЕТИ" | F28: 7401008779 | G28: 740101001 | H28: Передача+Сбыт
A29: 28 | B29: Ашинский муниципальный район | C29: Город Аша | D29: 75609101 | E29: ОАО "Ашинский металлургический завод" | F29: 7401000473 | G29: 741450001 | H29: производство (некомбинированная выработка)
A30: 29 | B30: Ашинский муниципальный район | C30: Город Аша | D30: 75609101 | E30: ОАО "Ашинский химический завод" | F30: 7401000970 | G30: 740101001 | H30: производство (некомбинированная выработка)
A31: 30 | B31: Ашинский муниципальный район | C31: Город Миньяр | D31: 75609103 | E31: ООО "Миньярская коммунальная компания" | F31: 7401012408 | G31: 740101001 | H31: производство (некомбинированная выработка)+передача+сбыт
A32: 31 | B32: Ашинский муниципальный район | C32: Город Сим | D32: 75609105 | E32: ОАО "Агрегат" | F32: 7401000191 | G32: 741450001 | H32: производство (некомбинированная выработка)+передача+сбыт
A33: 32 | B33: Ашинский муниципальный район | C33: Город Сим | D33: 75609105 | E33: ООО "Горкомсети" | F33: 7401012990 | G33: 740101001 | H33: производство (некомбинированная выработка)+передача+сбыт
A34: 33 | B34: Ашинский муниципальный район | C34: Укское | D34: 75609477 | E34: ООО "Ремонт" | F34: 7401008592 | G34: 740101001 | H34: производство (некомбинированная выработка)+передача+сбыт
A35: 34 | B35: Ашинский муниципальный район | C35: Укское | D35: 75609477 | E35: ООО "Теплоэнергетика" | F35: 7411016000 | G35: 740101001 | H35: производство (некомбинированная выработка)
A36: 35 | B36: Варненский муниципальный район | C36: Варненское | D36: 75614420 | E36: ООО "СтройКомплекс" | F36: 7443005963 | G36: 744301001 | H36: производство (некомбинированная выработка)+передача+сбыт
A37: 36 | B37: Верхнеуральский муниципальный район | C37: Бабарыкинское | D37: 75617411 | E37: МУП "Благоустройство" | F37: 7425759157 | G37: 742501001 | H37: производство (некомбинированная выработка)+передача+сбыт
A38: 37 | B38: Верхнеуральский муниципальный район | C38: Верхнеуральский муниципальный район | D38: 75617000 | E38: МУП "Благоустройство" | F38: 7425759157 | G38: 742501001 | H38: производство (некомбинированная выработка)+передача+сбыт
A39: 38 | B39: Верхнеуральский муниципальный район | C39: Город Верхнеуральск | D39: 75617101 | E39: МУП "Благоустройство" | F39: 7425759157 | G39: 742501001 | H39: производство (некомбинированная выработка)+передача+сбыт
A40: 39 | B40: Верхнеуральский муниципальный район | C40: Город Верхнеуральск | D40: 75617101 | E40: ООО "Жилкомхоз" | F40: 7425757199 | G40: 742501001 | H40: производство (некомбинированная выработка)+передача+сбыт
A41: 40 | B41: Верхнеуральский муниципальный район | C41: Карагайское | D41: 75617422 | E41: МУП "Благоустройство" | F41: 7425759157 | G41: 742501001 | H41: производство (некомбинированная выработка)+передача+сбыт
A42: 41 | B42: Верхнеуральский муниципальный район | C42: Кирсинское | D42: 75617433 | E42: МУП "Благоустройство" | F42: 7425759157 | G42: 742501001 | H42: производство (некомбинированная выработка)+передача+сбыт
A43: 42 | B43: Верхнеуральский муниципальный район | C43: Кирсинское | D43: 75617433 | E43: ООО "Грин Хит-Тепло" | F43: 7447192873 | G43: 745001001 | H43: производство (некомбинированная выработка)+передача+сбыт
A44: 43 | B44: Верхнеуральский муниципальный район | C44: Кирсинское | D44: 75617433 | E44: ООО "Коммунальный сервис плюс" | F44: 7425759206 | G44: 742501001 | H44: производство (некомбинированная выработка)+передача+сбыт
A45: 44 | B45: Верхнеуральский муниципальный район | C45: Краснинское | D45: 75617444 | E45: МУП "Благоустройство" | F45: 7425759157 | G45: 742501001 | H45: производство (некомбинированная выработка)+передача+сбыт
A46: 45 | B46: Верхнеуральский муниципальный район | C46: Петропавловское | D46: 75617455 | E46: МУП "Благоустройство" | F46: 7425759157 | G46: 742501001 | H46: производство (некомбинированная выработка)+передача+сбыт
A47: 46 | B47: Верхнеуральский муниципальный район | C47: Поселок Межозерный | D47: 75617153 | E47: МУП "Благоустройство" | F47: 7425759157 | G47: 742501001 | H47: производство (некомбинированная выработка)+передача+сбыт
A48: 47 | B48: Верхнеуральский муниципальный район | C48: Поселок Межозерный | D48: 75617153 | E48: ОАО "Учалинский горно-обогатительный комбинат" | F48: 0270007455 | G48: 025250001 | H48: производство (некомбинированная выработка)+передача+сбыт
A49: 48 | B49: Верхнеуральский муниципальный район | C49: Поселок Межозерный | D49: 75617153 | E49: ООО "Тепловодсервис" | F49: 7425746359 | G49: 742501001 | H49: Передача
A50: 49 | B50: Верхнеуральский муниципальный район | C50: Спасское | D50: 75617466 | E50: МУП "Благоустройство" | F50: 7425759157 | G50: 742501001 | H50: производство (некомбинированная выработка)+передача+сбыт
A51: 50 | B51: Верхнеуральский муниципальный район | C51: Спасское | D51: 75617466 | E51: ООО "Спасск-ЖКО" | F51: 7455005260 | G51: 745501001 | H51: производство (некомбинированная выработка)+передача+сбыт
A52: 51 | B52: Верхнеуральский муниципальный район | C52: Степное | D52: 75617477 | E52: МУП "Благоустройство" | F52: 7425759157 | G52: 742501001 | H52: производство (некомбинированная выработка)+передача+сбыт
A53: 52 | B53: Верхнеуральский муниципальный район | C53: Сурменевское | D53: 75617479 | E53: МУП "Благоустройство" | F53: 7425759157 | G53: 742501001 | H53: производство (некомбинированная выработка)+передача+сбыт
A54: 53 | B54: Верхнеуральский муниципальный район | C54: Сурменевское | D54: 75617479 | E54: ООО "Станица" | F54: 7425758114 | G54: 742501001 | H54: производство (некомбинированная выработка)+передача+сбыт
A55: 54 | B55: Верхнеуральский муниципальный район | C55: Форштадское | D55: 75617488 | E55: МУП "Благоустройство" | F55: 7425759157 | G55: 742501001 | H55: производство (некомбинированная выработка)+передача+сбыт
A56: 55 | B56: Город Верхний Уфалей | C56: Город Верхний Уфалей | D56: 75706000 | E56: Вагонное депо Верхний Уфалей - филиал ЗАО "Уралгоршахткомплект" | F56: 6671115787 | G56: 740201001 | H56: производство (некомбинированная выработка)+передача+сбыт
A57: 56 | B57: Город Верхний Уфалей | C57: Город Верхний Уфалей | D57: 75706000 | E57: МУП "Благоустройство" | F57: 7425759157 | G57: 742501001 | H57: производство (некомбинированная выработка)+передача+сбыт
A58: 57 | B58: Город Верхний Уфалей | C58: Город Верхний Уфалей | D58: 75706000 | E58: МУП "Энергетик" | F58: 7402007009 | G58: 740201001 | H58: производство (некомбинированная выработка)+передача+сбыт
A59: 58 | B59: Город Верхний Уфалей | C59: Город Верхний Уфалей | D59: 75706000 | E59: ОАО "Завод Дормаш" | F59: 7402000412 | G59: 740201001 | H59: производство (некомбинированная выработка)+передача+сбыт
A60: 59 | B60: Город Верхний Уфалей | C60: Город Верхний Уфалей | D60: 75706000 | E60: ОАО "Уфалейникель" | F60: 7402001769 | G60: 740201001 | H60: производство (некомбинированная выработка)+передача+сбыт
A61: 60 | B61: Город Верхний Уфалей | C61: Город Верхний Уфалей | D61: 75706000 | E61: ООО "Бриз" | F61: 7451273885 | G61: 745101001 | H61: производство (некомбинированная выработка)+передача+сбыт
A62: 61 | B62: Город Верхний Уфалей | C62: Город Верхний Уфалей | D62: 75706000 | E62: ООО "Волна" | F62: 7402000797 | G62: 740201001 | H62: производство (некомбинированная выработка)+передача+сбыт
A63: 62 | B63: Город Верхний Уфалей | C63: Город Верхний Уфалей | D63: 75706000 | E63: ООО "Теплосети" | F63: 7402008362 | G63: 740201001 | H63: производство (некомбинированная выработка)+передача+сбыт
A64: 63 | B64: Город Верхний Уфалей | C64: Город Верхний Уфалей | D64: 75706000 | E64: ООО "УЗМИ" | F64: 7402004819 | G64: 740201001 | H64: Передача
A65: 64 | B65: Город Златоуст | C65: Город Златоуст | D65: 75712000 | E65: МУП "Коммунальные сети" | F65: 7404056530 | G65: 740401001 | H65: Передача+Сбыт
A66: 65 | B66: Город Златоуст | C66: Город Златоуст | D66: 75712000 | E66: ОАО "Златоустовский машиностроительный завод" | F66: 7404052938 | G66: 741450001 | H66: производство (некомбинированная выработка)
A67: 66 | B67: Город Златоуст | C67: Город Златоуст | D67: 75712000 | E67: ООО "ЗМЗ-Энерго" | F67: 7404056636 | G67: 740401001 | H67: производство (некомбинированная выработка)+передача+сбыт
A68: 67 | B68: Город Златоуст | C68: Город Златоуст | D68: 75712000 | E68: ООО "Златсеть" | F68: 7404056121 | G68: 740401001 | H68: Передача
A69: 68 | B69: Город Златоуст | C69: Город Златоуст | D69: 75712000 | E69: ООО "Специальное производственно-монтажное управление № 2М" | F69: 7404038997 | G69: 740401001 | H69: производство (некомбинированная выработка)+передача+сбыт
A70: 69 | B70: Город Златоуст | C70: Город Златоуст | D70: 75712000 | E70: ООО "Теплоэнергетик" | F70: 7404054090 | G70: 740401001 | H70: производство (некомбинированная выработка)+передача+сбыт
A71: 70 | B71: Город Златоуст | C71: Город Златоуст | D71: 75712000 | E71: ООО "Техметпром" | F71: 7404051099 | G71: 740401001 | H71: производство (некомбинированная выработка)+передача+сбыт
A72: 71 | B72: Город Златоуст | C72: Город Златоуст | D72: 75712000 | E72: Путевая машинная станция № 173 Южно-Уральской дирекции по ремонту пути - структурного подразделения Центральной дирекции по ремонту пути - филиала ОАО "РЖД" | F72: 7708503727 | G72: 740431030 | H72: производство (некомбинированная выработка)+передача+сбыт
A73: 72 | B73: Город Златоуст | C73: Город Златоуст | D73: 75712000 | E73: Челябинский филиал ООО "МЕЧЕЛ-ЭНЕРГО" | F73: 7722245108 | G73: 745043001 | H73: производство комбинированная выработка
A74: 73 | B74: Город Златоуст | C74: Город Златоуст | D74: 75712000 | E74: Челябинский филиал ООО "МЕЧЕЛ-ЭНЕРГО" | F74: 7722245108 | G74: 745043001 | H74: производство (некомбинированная выработка)+передача+сбыт
A75: 74 | B75: Город Златоуст | C75: Город Златоуст | D75: 75712000 | E75: филиал ОАО "Росспиртпром" "Златоустовский ликероводочный завод" (переименован от филиал ФГУП "Росспиртпром" "Златоустовский ликероводочный завод") | F75: 7730605160 | G75: 740443001 | H75: производство (некомбинированная выработка)
A76: 75 | B76: Город Карабаш | C76: Город Карабаш | D76: 75715000 | E76: "Карабашмедь" | F76: 7400002523 | G76: 740001001 | H76: производство (некомбинированная выработка)+передача+сбыт
A77: 76 | B77: Город Карабаш | C77: Город Карабаш | D77: 75715000 | E77: "УК "ЖКХ" Карабашского городского округа | F77: 7413012642 | G77: 741301001 | H77: Передача
A78: 77 | B78: Город Карабаш | C78: Город Карабаш | D78: 75715000 | E78: МАУ "Карабашские коммунальные системы" | F78: 7413015347 | G78: 741301001 | H78: производство (некомбинированная выработка)+передача+сбыт
A79: 78 | B79: Город Карабаш | C79: Город Карабаш | D79: 75715000 | E79: ООО "Фортуна Плюс" | F79: 7415064205 | G79: 741501001 | H79: производство (некомбинированная выработка)+передача+сбыт
A80: 79 | B80: Город Копейск | C80: Город Копейск | D80: 75728000 | E80: Копейское шахтоуправление - филиал ОАО по добыче угля "Челябинская угольная компания" | F80: 7451105792 | G80: 741201001 | H80: производство (некомбинированная выработка)+передача+сбыт
A81: 80 | B81: Город Копейск | C81: Город Копейск | D81: 75728000 | E81: МУП "Производственное объединение водоснабжения и водоотведения" | F81: 7421000440 | G81: 742150001 | H81: производство (некомбинированная выработка)+передача+сбыт
A82: 81 | B82: Город Копейск | C82: Город Копейск | D82: 75728000 | E82: МУП Копейского городского округа "Городские бани" | F82: 7411019064 | G82: 741101001 | H82: производство (некомбинированная выработка)+передача+сбыт
A83: 82 | B83: Город Копейск | C83: Город Копейск | D83: 75728000 | E83: ОАО "Птицефабрика Челябинская" | F83: 7430008205 | G83: 745450001 | H83: производство (некомбинированная выработка)+передача+сбыт
A84: 83 | B84: Город Копейск | C84: Город Копейск | D84: 75728000 | E84: ОАО Завод Пластмасс | F84: 7411009901 | G84: 741101001 | H84: производство (некомбинированная выработка)
A85: 84 | B85: Город Копейск | C85: Город Копейск | D85: 75728000 | E85: ООО "ИРМИ ЖКХ" | F85: 7411019829 | G85: 741101001 | H85: Передача
A86: 85 | B86: Город Копейск | C86: Город Копейск | D86: 75728000 | E86: ООО "Квартал-Сервис" | F86: 7411042803 | G86: 741101001 | H86: производство (некомбинированная выработка)+передача+сбыт
A87: 86 | B87: Город Копейск | C87: Город Копейск | D87: 75728000 | E87: ООО "Копейский кирпичный завод" | F87: 7411015849 | G87: 741101001 | H87: производство (некомбинированная выработка)
A88: 87 | B88: Город Копейск | C88: Город Копейск | D88: 75728000 | E88: ООО "Коркинский экскаваторо-вагоноремонтный завод" | F88: 7412012791 | G88: 741201001 | H88: производство (некомбинированная выработка)+передача+сбыт
A89: 88 | B89: Город Копейск | C89: Город Копейск | D89: 75728000 | E89: ООО "Тепло и Сервис" | F89: 7411017733 | G89: 741101001 | H89: производство (некомбинированная выработка)+передача+сбыт
A90: 89 | B90: Город Копейск | C90: Город Копейск | D90: 75728000 | E90: ФКУ ИК-11 ГУФСИН России по Челябинской области | F90: 7411015937 | G90: 741101001 | H90: производство (некомбинированная выработка)
A91: 90 | B91: Город Кыштым | C91: Город Кыштым | D91: 75734000 | E91: МУП "Санаторий "Дальняя Дача" | F91: 7422012007 | G91: 741301001 | H91: производство (некомбинированная выработка)+передача+сбыт
A92: 91 | B92: Город Кыштым | C92: Город Кыштым | D92: 75734000 | E92: Муниципальное производственное управление теплоснабжения | F92: 7413000541 | G92: 741301001 | H92: производство (некомбинированная выработка)+передача+сбыт
A93: 92 | B93: Город Кыштым | C93: Город Кыштым | D93: 75734000 | E93: ОАО "КСАНТА" | F93: 7413012160 | G93: 741301001 | H93: производство (некомбинированная выработка)
A94: 93 | B94: Город Кыштым | C94: Город Кыштым | D94: 75734000 | E94: ОАО "Кыштымский абразивный завод" | F94: 7413007498 | G94: 741301001 | H94: производство (некомбинированная выработка)
A95: 94 | B95: Город Кыштым | C95: Город Кыштым | D95: 75734000 | E95: ОАО "Кыштымское машиностроительное объединение" | F95: 7413009745 | G95: 741301001 | H95: производство (некомбинированная выработка)+передача+сбыт
A96: 95 | B96: Город Кыштым | C96: Город Кыштым | D96: 75734000 | E96: ООО "Импульс" | F96: 6670116900 | G96: 744701001 | H96: производство (некомбинированная выработка)+передача+сбыт
A97: 96 | B97: Город Кыштым | C97: Город Кыштым | D97: 75734000 | E97: ООО "Кыштымский огнеупорный завод" | F97: 7413009880 | G97: 741301001 | H97: производство (некомбинированная выработка)
A98: 97 | B98: Город Кыштым | C98: Город Кыштым | D98: 75734000 | E98: ФКУЗ "Санаторий "Лесное озеро" МВД России" (переименован из ГУ "Санаторий "Лесное озеро" МВД России) | F98: 7413003260 | G98: 741301001 | H98: производство (некомбинированная выработка)
A99: 98 | B99: Город Магнитогорск | C99: Город Магнитогорск | D99: 75738000 | E99: Вагонное рамонтное депо Магнитогорск - обособленное структурное подразделение Самарского филиала ОАО "Вагонная ремонтная компания - 1" | F99: 7708737490 | G99: 745645001 | H99: производство (некомбинированная выработка)+передача+сбыт
A100: 99 | B100: Город Магнитогорск | C100: Город Магнитогорск | D100: 75738000 | E100: ЗАО "Магнитогорский комбинат хлебопродуктов "Ситно" | F100: 7414001724 | G100: 744501001 | H100: производство (некомбинированная выработка)+передача+сбыт
A101: 100 | B101: Город Магнитогорск | C101: Город Магнитогорск | D101: 75738000 | E101: МП трест "Теплофикация" | F101: 7414000657 | G101: 744501001 | H101: производство (некомбинированная выработка)+передача+сбыт
A102: 101 | B102: Город Магнитогорск | C102: Город Магнитогорск | D102: 75738000 | E102: ОАО "Магнитогорский металлургический комбинат" | F102: 7414003633 | G102: 997550001 | H102: производство (некомбинированная выработка)
A103: 102 | B103: Город Магнитогорск | C103: Город Магнитогорск | D103: 75738000 | E103: ОАО "Магнитогорский метизно-калибровочный завод "ММК-Метиз" | F103: 7414001428 | G103: 741450001 | H103: производство (некомбинированная выработка)+передача+сбыт
A104: 103 | B104: Город Магнитогорск | C104: Город Магнитогорск | D104: 75738000 | E104: ООО "ЗЖБИ-500" | F104: 7444039010 | G104: 744401001 | H104: производство (некомбинированная выработка)+передача+сбыт
A105: 104 | B105: Город Магнитогорск | C105: Город Магнитогорск | D105: 75738000 | E105: ООО "МагХолод" | F105: 7446047168 | G105: 744401001 | H105: производство (некомбинированная выработка)+передача+сбыт
A106: 105 | B106: Город Магнитогорск | C106: Город Магнитогорск | D106: 75738000 | E106: ООО "Магнитогорский завод пиво-безалкогольных напитков" | F106: 7445037819 | G106: 744501001 | H106: производство (некомбинированная выработка)+передача+сбыт
A107: 106 | B107: Город Магнитогорск | C107: Город Магнитогорск | D107: 75738000 | E107: ООО "Производственная компания "Макинтош" | F107: 7444033025 | G107: 744401001 | H107: производство (некомбинированная выработка)+передача+сбыт
A108: 107 | B108: Город Магнитогорск | C108: Город Магнитогорск | D108: 75738000 | E108: ООО "Фабрика кухонной мебели" | F108: 7444050542 | G108: 744401001 | H108: производство (некомбинированная выработка)+передача+сбыт
A109: 108 | B109: Город Магнитогорск | C109: Город Магнитогорск | D109: 75738000 | E109: ООО "Элеваторзернопродукт" | F109: 7453062777 | G109: 744601001 | H109: производство (некомбинированная выработка)+передача+сбыт
A110: 109 | B110: Город Магнитогорск | C110: Город Магнитогорск | D110: 75738000 | E110: ФБУ ИК-18 ГУФСИН России по Челябинской области | F110: 7445016047 | G110: 744501001 | H110: производство (некомбинированная выработка)+передача+сбыт
A111: 110 | B111: Город Магнитогорск | C111: Город Магнитогорск | D111: 75738000 | E111: ФГУП "Магнитогорское авиапредприятие" | F111: 7414001957 | G111: 744601001 | H111: производство (некомбинированная выработка)+передача+сбыт
A112: 111 | B112: Город Миасс | C112: Город Миасс | D112: 75742000 | E112: Государственное предприятие "Предприятие "Урал" | F112: 7415010249 | G112: 741501001 | H112: производство (некомбинированная выработка)+передача+сбыт
A113: 112 | B113: Город Миасс | C113: Город Миасс | D113: 75742000 | E113: ЗАО "Миассмебель" | F113: 7415002713 | G113: 741501001 | H113: производство (некомбинированная выработка)+передача+сбыт
A114: 113 | B114: Город Миасс | C114: Город Миасс | D114: 75742000 | E114: ОАО "Миасский машиностроительный завод" | F114: 7415061758 | G114: 741501001 | H114: производство комбинированная выработка
A115: 114 | B115: Город Миасс | C115: Город Миасс | D115: 75742000 | E115: ОАО "Миассэлектроаппарат" | F115: 7415028790 | G115: 741501001 | H115: Передача
A116: 115 | B116: Город Миасс | C116: Город Миасс | D116: 75742000 | E116: ОАО "Первая нерудная компания" - филиал Хребетский щебеночный завод | F116: 7708670326 | G116: 741502001 | H116: производство (некомбинированная выработка)
A117: 116 | B117: Город Миасс | C117: Город Миасс | D117: 75742000 | E117: ОАО "Тургоякское рудоуправление" | F117: 7415004421 | G117: 741501001 | H117: производство (некомбинированная выработка)+передача+сбыт
A118: 117 | B118: Город Миасс | C118: Город Миасс | D118: 75742000 | E118: ОАО "ЭнСер" переименована от (ОАО "УралАЗ-Энерго") | F118: 7415036215 | G118: 741501001 | H118: производство (некомбинированная выработка)+передача+сбыт
A119: 118 | B119: Город Миасс | C119: Город Миасс | D119: 75742000 | E119: ООО "ЖЭК" | F119: 7415044632 | G119: 741501001 | H119: производство (некомбинированная выработка)+передача+сбыт
A120: 119 | B120: Город Миасс | C120: Город Миасс | D120: 75742000 | E120: ООО "ИБК-Энерго" | F120: 7415046510 | G120: 741501001 | H120: производство (некомбинированная выработка)+передача+сбыт
A121: 120 | B121: Город Миасс | C121: Город Миасс | D121: 75742000 | E121: ООО "ПЭК "Теплоснабжение" | F121: 7415040155 | G121: 741501001 | H121: Передача
A122: 121 | B122: Город Миасс | C122: Город Миасс | D122: 75742000 | E122: ООО "ТК "Октябрь" | F122: 7415049045 | G122: 741501001 | H122: производство (некомбинированная выработка)+передача+сбыт
A123: 122 | B123: Город Миасс | C123: Город Миасс | D123: 75742000 | E123: ООО "ТеплоРемонт" | F123: 7448112790 | G123: 744801001 | H123: производство (некомбинированная выработка)+сбыт
A124: 123 | B124: Город Миасс | C124: Город Миасс | D124: 75742000 | E124: ООО "ТеплоСтройСервис" | F124: 7415061652 | G124: 741501001 | H124: производство (некомбинированная выработка)+передача+сбыт
A125: 124 | B125: Город Миасс | C125: Город Миасс | D125: 75742000 | E125: ООО "УралТеплоСтрой" | F125: 7415050153 | G125: 741501001 | H125: производство (некомбинированная выработка)+передача+сбыт
A126: 125 | B126: Город Миасс | C126: Город Миасс | D126: 75742000 | E126: ООО "Южная Теплоэнергетическая компания" | F126: 7415043847 | G126: 741501001 | H126: производство (некомбинированная выработка)+передача+сбыт
A127: 126 | B127: Город Миасс | C127: Город Миасс | D127: 75742000 | E127: ООО "Южный ТеплоЭнергетический комплекс" | F127: 7415046220 | G127: 741501001 | H127: производство (некомбинированная выработка)+передача+сбыт
A128: 127 | B128: Город Миасс | C128: Город Миасс | D128: 75742000 | E128: УК "Орион" поселок Ленинск | F128: 7415048605 | G128: 741501001 | H128: Передача
A129: 128 | B129: Город Миасс | C129: Город Миасс | D129: 75742000 | E129: Частное учреждение "Детский оздоровительный лагерь "Еланчик" ОАО "ЧТПЗ" | F129: 7415033126 | G129: 741501001 | H129: производство (некомбинированная выработка)+передача+сбыт
A130: 129 | B130: Город Миасс | C130: Город Миасс | D130: 75742000 | E130: Челябинское нефтепроводное управление - филиал ОАО "Уралсибнефтепровод" | F130: 0278039018 | G130: 744902001 | H130: производство (некомбинированная выработка)+передача+сбыт
A131: 130 | B131: Город Озерск (ЗАТО) | C131: Город Озерск (ЗАТО) | D131: 75743000 | E131: ММПКХ | F131: 7422000570 | G131: 742201001 | H131: производство (некомбинированная выработка)+передача+сбыт
A132: 131 | B132: Город Озерск (ЗАТО) | C132: Город Озерск (ЗАТО) | D132: 75743000 | E132: ММУП ЖКХ п. Новогорный | F132: 7422015336 | G132: 742201001 | H132: производство (некомбинированная выработка)+передача+сбыт
A133: 132 | B133: Город Озерск (ЗАТО) | C133: Город Озерск (ЗАТО) | D133: 75743000 | E133: ОАО "Фортум" (Аргаяшская ТЭЦ) | F133: 7203162698 | G133: 742202001 | H133: производство комбинированная выработка
A134: 133 | B134: Город Озерск (ЗАТО) | C134: Город Озерск (ЗАТО) | D134: 75743000 | E134: ООО "Управление энергоснабжения и связи" | F134: 7422043968 | G134: 742201001 | H134: Передача
A135: 134 | B135: Город Озерск (ЗАТО) | C135: Город Озерск (ЗАТО) | D135: 75743000 | E135: ФГУП "ПО "Маяк" | F135: 7422000795 | G135: 742201001 | H135: производство (некомбинированная выработка)+передача+сбыт
A136: 135 | B136: Город Снежинск (ЗАТО) | C136: Город Снежинск (ЗАТО) | D136: 75746000 | E136: ОАО "Трансэнерго" | F136: 7423023178 | G136: 745450001 | H136: производство (некомбинированная выработка)
A137: 136 | B137: Город Снежинск (ЗАТО) | C137: Город Снежинск (ЗАТО) | D137: 75746000 | E137: ООО "Дом" | F137: 7423021406 | G137: 742301001 | H137: производство (некомбинированная выработка)+передача+сбыт
A138: 137 | B138: Город Трехгорный (ЗАТО) | C138: Город Трехгорный (ЗАТО) | D138: 75707000 | E138: МУП "Многоотраслевое производственное объединение энергосетей" | F138: 7405000450 | G138: 740501001 | H138: производство (некомбинированная выработка)+передача+сбыт
A139: 138 | B139: Город Трехгорный (ЗАТО) | C139: Город Трехгорный (ЗАТО) | D139: 75707000 | E139: ФГУП "Приборостроительный завод" | F139: 7405000428 | G139: 742150001 | H139: производство (некомбинированная выработка)+передача+сбыт
A140: 139 | B140: Город Троицк | C140: Город Троицк | D140: 75752000 | E140: ГУЗ "Областная туберкулезная больница № 13" | F140: 7418015703 | G140: 741801001 | H140: производство (некомбинированная выработка)+передача+сбыт
A141: 140 | B141: Город Троицк | C141: Город Троицк | D141: 75752000 | E141: ЗАО "Троицкие энергетические системы" | F141: 7418014763 | G141: 741801001 | H141: Передача+Сбыт
A142: 141 | B142: Город Троицк | C142: Город Троицк | D142: 75752000 | E142: Закрытое акционерное общество "Троицкая энергетическая компания" | F142: 7418017355 | G142: 741801004 | H142: Передача+Сбыт
A143: 142 | B143: Город Троицк | C143: Город Троицк | D143: 75752000 | E143: МУП "Электротепловые сети" | F143: 7418012452 | G143: 741801001 | H143: производство (некомбинированная выработка)+передача+сбыт
A144: 143 | B144: Город Троицк | C144: Город Троицк | D144: 75752000 | E144: ОАО "Троицкий комбинат хлебопродуктов" | F144: 7439000585 | G144: 741801001 | H144: производство (некомбинированная выработка)+передача+сбыт
A145: 144 | B145: Город Троицк | C145: Город Троицк | D145: 75752000 | E145: ООО "Агротехсервис" | F145: 7418018253 | G145: 741801001 | H145: производство (некомбинированная выработка)+передача+сбыт
A146: 145 | B146: Город Троицк | C146: Город Троицк | D146: 75752000 | E146: ООО Теплоэнерго | F146: 7418014072 | G146: 741801001 | H146: Передача+Сбыт
A147: 146 | B147: Город Троицк | C147: Город Троицк | D147: 75752000 | E147: Троицкая ГРЭС филиал ОАО "ОГК-2" | F147: 2607018122 | G147: 741802001 | H147: производство комбинированная выработка
A148: 147 | B148: Город Троицк | C148: Город Троицк | D148: 75752000 | E148: Федеральное государственное казенное учреждение "Пограничное управление ФСБ России по Челябинской области" | F148: 7453145261 | G148: 745301001 | H148: производство (некомбинированная выработка)+передача+сбыт
A149: 148 | B149: Город Усть-Катав | C149: Город Усть-Катав | D149: 75755000 | E149: ООО "Коммунальные системы" | F149: 7401016226 | G149: 740101001 | H149: производство (некомбинированная выработка)
A150: 149 | B150: Город Усть-Катав | C150: Город Усть-Катав | D150: 75755000 | E150: ООО "Теплоэнергетика" | F150: 7401011316 | G150: 740101001 | H150: производство (некомбинированная выработка)+передача+сбыт
A151: 150 | B151: Город Чебаркуль | C151: Город Чебаркуль | D151: 75758000 | E151: ГОУ СПО (ССУЗ) "Чебаркульский агролесохозяйственный колледж" | F151: 7420006181 | G151: 742001001 | H151: производство (некомбинированная выработка)+передача+сбыт
A152: 151 | B152: Город Чебаркуль | C152: Город Чебаркуль | D152: 75758000 | E152: ГУП "Санаторий Еловое" | F152: 7420005117 | G152: 742001001 | H152: производство (некомбинированная выработка)+передача+сбыт
A153: 152 | B153: Город Чебаркуль | C153: Город Чебаркуль | D153: 75758000 | E153: ГУП Санаторий "Сосновая горка" | F153: 7420005163 | G153: 742001001 | H153: производство (некомбинированная выработка)+передача+сбыт
A154: 153 | B154: Город Чебаркуль | C154: Город Чебаркуль | D154: 75758000 | E154: МУП "Теплоэнергоснабжение" | F154: 7420003663 | G154: 742001001 | H154: Передача+Сбыт
A155: 154 | B155: Город Чебаркуль | C155: Город Чебаркуль | D155: 75758000 | E155: ООО "АТИС" | F155: 7420008301 | G155: 742001001 | H155: производство (некомбинированная выработка)+передача+сбыт
A156: 155 | B156: Город Чебаркуль | C156: Город Чебаркуль | D156: 75758000 | E156: ООО "ЖЭУ-3" | F156: 7420014778 | G156: 742001001 | H156: производство (некомбинированная выработка)+передача+сбыт
A157: 156 | B157: Город Чебаркуль | C157: Город Чебаркуль | D157: 75758000 | E157: ООО "Санаторий "Кисегач" | F157: 7420007450 | G157: 742001001 | H157: производство (некомбинированная выработка)+передача+сбыт
A158: 157 | B158: Город Чебаркуль | C158: Город Чебаркуль | D158: 75758000 | E158: ООО "ТеплоРесурс" | F158: 7420013929 | G158: 742001001 | H158: производство (некомбинированная выработка)+передача+сбыт
A159: 158 | B159: Город Чебаркуль | C159: Город Чебаркуль | D159: 75758000 | E159: ООО "Уральская фанера" | F159: 7420007964 | G159: 742001001 | H159: производство (некомбинированная выработка)+передача+сбыт
A160: 159 | B160: Город Чебаркуль | C160: Город Чебаркуль | D160: 75758000 | E160: ООО "Чебаркульская птица" | F160: 7420008157 | G160: 742001001 | H160: производство (некомбинированная выработка)+передача+сбыт
A161: 160 | B161: Город Чебаркуль | C161: Город Чебаркуль | D161: 75758000 | E161: Челябинский филиал ООО "МЕЧЕЛ-ЭНЕРГО" | F161: 7722245108 | G161: 745043001 | H161: производство комбинированная выработка
A162: 161 | B162: Город Чебаркуль | C162: Город Чебаркуль | D162: 75758000 | E162: Челябинский филиал ООО "МЕЧЕЛ-ЭНЕРГО" | F162: 7722245108 | G162: 745043001 | H162: производство (некомбинированная выработка)+передача+сбыт
A163: 162 | B163: Город Южноуральск | C163: Город Южноуральск | D163: 75764000 | E163: ОАО "ОГК-3" - Южноуральская ГРЭС | F163: 0326023099 | G163: 742402001 | H163: производство комбинированная выработка
A164: 163 | B164: Город Южноуральск | C164: Город Южноуральск | D164: 75764000 | E164: ОАО "Южноуральская теплосбытовая компания" | F164: 7424024520 | G164: 742401001 | H164: Передача+Сбыт
A165: 164 | B165: Город Южноуральск | C165: Город Южноуральск | D165: 75764000 | E165: ООО "ТеплоСервис" | F165: 7424027295 | G165: 742401001 | H165: производство (некомбинированная выработка)+передача+сбыт
A166: 165 | B166: Городские округа Челябинской области | C166: Городские округа Челябинской области | D166: 75700000 | E166: Дирекция по ремонту и эксплуатации путевых машин ЮУЖД - филиала ОАО "РЖД" | F166: 7708503727 | G166: 745145033 | H166: производство (некомбинированная выработка)+сбыт
A167: 166 | B167: Городские округа Челябинской области | C167: Городские округа Челябинской области | D167: 75700000 | E167: МУП "ЖКХ" п.Жукатау | F167: 7417013527 | G167: 741701001 | H167: производство (некомбинированная выработка)+передача+сбыт
A168: 167 | B168: Городские округа Челябинской области | C168: Городские округа Челябинской области | D168: 75700000 | E168: МУП "Производственное объединение водоснабжения и водоотведения" | F168: 7421000440 | G168: 742150001 | H168: производство (некомбинированная выработка)+передача+сбыт
A169: 168 | B169: Городские округа Челябинской области | C169: Городские округа Челябинской области | D169: 75700000 | E169: ОАО "ВРК-2" | F169: 7708737517 | G169: 745145001 | H169: производство (некомбинированная выработка)+передача+сбыт
A170: 169 | B170: Городские округа Челябинской области | C170: Городские округа Челябинской области | D170: 75700000 | E170: ОАО "Фортум" (Челябинская ТЭЦ-1) | F170: 7203162698 | G170: 744943001 | H170: производство комбинированная выработка
A171: 170 | B171: Городские округа Челябинской области | C171: Городские округа Челябинской области | D171: 75700000 | E171: ОАО "Фортум" (Челябинская ГРЭС) | F171: 7203162698 | G171: 744702001 | H171: производство комбинированная выработка
A172: 171 | B172: Городские округа Челябинской области | C172: Городские округа Челябинской области | D172: 75700000 | E172: ОАО "Фортум" (Челябинская ТЭЦ-2) | F172: 7203162698 | G172: 745202002 | H172: производство комбинированная выработка
A173: 172 | B173: Городские округа Челябинской области | C173: Городские округа Челябинской области | D173: 75700000 | E173: ОАО "Фортум" (Челябинская ТЭЦ-3) | F173: 7203162698 | G173: 745202001 | H173: производство комбинированная выработка
A174: 173 | B174: Городские округа Челябинской области | C174: Городские округа Челябинской области | D174: 75700000 | E174: ОАО "Энергопром-Челябинский Электродный завод" | F174: 7450005001 | G174: 745001001 | H174: производство (некомбинированная выработка)+сбыт
A175: 174 | B175: Городские округа Челябинской области | C175: Городские округа Челябинской области | D175: 75700000 | E175: ОАО "Энергосистемы" | F175: 7417011223 | G175: 741701001 | H175: производство (некомбинированная выработка)+передача+сбыт
A176: 175 | B176: Городские округа Челябинской области | C176: Городские округа Челябинской области | D176: 75700000 | E176: ОГУП "Областная казна" | F176: 7448002282 | G176: 744801001 | H176: производство (некомбинированная выработка)+передача+сбыт
A177: 176 | B177: Городские округа Челябинской области | C177: Городские округа Челябинской области | D177: 75700000 | E177: ООО "Тепловая котельная "Западная" | F177: 7453203932 | G177: 745301001 | H177: производство (некомбинированная выработка)+передача+сбыт
A178: 177 | B178: Городские округа Челябинской области | C178: Городские округа Челябинской области | D178: 75700000 | E178: ООО "Термогаз" | F178: 7447194905 | G178: 744701001 | H178: производство (некомбинированная выработка)+передача+сбыт
A179: 178 | B179: Городские округа Челябинской области | C179: Городские округа Челябинской области | D179: 75700000 | E179: ООО "УК "Вертикаль" | F179: 7452071810 | G179: 745201001 | H179: Передача
A180: 179 | B180: Городские округа Челябинской области | C180: Городские округа Челябинской области | D180: 75700000 | E180: ООО ГК "Уральская энергия" | F180: 7453228790 | G180: 745301001 | H180: производство (некомбинированная выработка)+передача+сбыт
A181: 180 | B181: Городские округа Челябинской области | C181: Городские округа Челябинской области | D181: 75700000 | E181: Общество с ограниченной ответственностью "Управляющая компания "Тополиная аллея" | F181: 7447094851 | G181: 744701001 | H181: производство (некомбинированная выработка)+передача+сбыт
A182: 181 | B182: Городские округа Челябинской области | C182: Городские округа Челябинской области | D182: 75700000 | E182: Открытое акционерное общество "Ремонтно-эксплуатационное управление" филиал "Екатеринбургский", г.Екатеринбург | F182: 7714783092 | G182: 667243001 | H182: производство (некомбинированная выработка)+передача+сбыт
A183: 182 | B183: Городские округа Челябинской области | C183: Городские округа Челябинской области | D183: 75700000 | E183: ТСЖ "Кумысное" | F183: 7418017203 | G183: 741801001 | H183: Передача+Сбыт
A184: 183 | B184: Городские округа Челябинской области | C184: Городские округа Челябинской области | D184: 75700000 | E184: Теплоэнергосбыт ООО | F184: 7453174382 | G184: 745301001 | H184: Передача+Сбыт
A185: 184 | B185: Городские округа Челябинской области | C185: Городские округа Челябинской области | D185: 75700000 | E185: ФГБУ "ФЦССХ" Минздравсоцразвития России (г. Челябинск) | F185: 7453215984 | G185: 745301001 | H185: производство (некомбинированная выработка)+передача+сбыт
A186: 185 | B186: Городские округа Челябинской области | C186: Городские округа Челябинской области | D186: 75700000 | E186: Челябинский филиал ООО "МЕЧЕЛ-ЭНЕРГО" | F186: 7722245108 | G186: 745043001 | H186: производство (некомбинированная выработка)+передача+сбыт
A187: 186 | B187: Городские округа Челябинской области | C187: Городские округа Челябинской области | D187: 75700000 | E187: Челябинский филиал ООО "МЕЧЕЛ-ЭНЕРГО" | F187: 7722245108 | G187: 745043001 | H187: производство комбинированная выработка
A188: 187 | B188: Городские округа Челябинской области | C188: Городские округа Челябинской области | D188: 75700000 | E188: Южно-Уральская дирекция по тепловодоснабжению - структурное подразделение Центральной дирекции по тепловодоснабжению - филиала ОАО "РЖД" | F188: 7708503727 | G188: 744945004 | H188: производство (некомбинированная выработка)+передача+сбыт
A189: 188 | B189: Городские округа Челябинской области | C189: город Челябинск | D189: 75700000 | E189: "Инженерные сети" | F189: 7453062551 | G189: 745301001 | H189: Передача
A190: 189 | B190: Городские округа Челябинской области | C190: город Челябинск | D190: 75700000 | E190: "Полет-Торг" | F190: 7448065733 | G190: 744801001 | H190: Передача
A191: 190 | B191: Городские округа Челябинской области | C191: город Челябинск | D191: 75700000 | E191: "Уралспецстрой" | F191: 7452020615 | G191: 745201001 | H191: Передача
A192: 191 | B192: Городские округа Челябинской области | C192: город Челябинск | D192: 75700000 | E192: Вагонное ремонтное депо Челябинск Южно-Уральской дирекции по ремонту грузовых вагонов - структурного подразделения Центральной дирекции по ремонту грузовых вагонов - филиала ОАО "РЖД" | F192: 7708503727 | G192: 745131023 | H192: производство (некомбинированная выработка)+передача+сбыт
A193: 192 | B193: Городские округа Челябинской области | C193: город Челябинск | D193: 75700000 | E193: Дирекция по ремонту и эксплуатации путевых машин ЮУЖД - филиала ОАО "РЖД" | F193: 7708503727 | G193: 745145033 | H193: производство (некомбинированная выработка)+сбыт
A194: 193 | B194: Городские округа Челябинской области | C194: город Челябинск | D194: 75700000 | E194: ЖКС "ЖЭК-2" | F194: 7448069858 | G194: 744801001 | H194: Передача
A195: 194 | B195: Городские округа Челябинской области | C195: город Челябинск | D195: 75700000 | E195: ЗАО "ЖБИ-2" | F195: 7449010303 | G195: 744901001 | H195: Передача
A196: 195 | B196: Городские округа Челябинской области | C196: город Челябинск | D196: 75700000 | E196: ЗАО "Предприятие службы быта "Станция технического обслуживания автомобилей" | F196: 7451018388 | G196: 745101001 | H196: производство (некомбинированная выработка)+передача+сбыт
A197: 196 | B197: Городские округа Челябинской области | C197: город Челябинск | D197: 75700000 | E197: Куйбышевская железная дорога - филиал РЖД | F197: 7708503727 | G197: 770901001 | H197: производство (некомбинированная выработка)+передача+сбыт
A198: 197 | B198: Городские округа Челябинской области | C198: город Челябинск | D198: 75700000 | E198: МУП "Дорожное ремонтно-строительное управление" | F198: 7453001245 | G198: 745101001 | H198: производство (некомбинированная выработка)+передача+сбыт
A199: 198 | B199: Городские округа Челябинской области | C199: город Челябинск | D199: 75700000 | E199: МУП "ЖКХ" п.Жукатау | F199: 7417013527 | G199: 741701001 | H199: производство (некомбинированная выработка)+передача+сбыт
A200: 199 | B200: Городские округа Челябинской области | C200: город Челябинск | D200: 75700000 | E200: МУП "Производственное объединение водоснабжения и водоотведения" | F200: 7421000440 | G200: 742150001 | H200: производство (некомбинированная выработка)+передача+сбыт
... 340 more rows

Sheet REESTR_FILTERED (hidden)
A1: № | B1: МР | C1: МО | D1: МО ОКТМО | E1: ОРГАНИЗАЦИЯ | F1: ИНН | G1: КПП | H1: ВИД ДЕЯТЕЛЬНОСТИ
A2: 1 | B2: Город Озерск (ЗАТО) | C2: Город Озерск (ЗАТО) | D2: 75743000 | E2: ММПКХ | F2: 7422000570 | G2: 742201001 | H2: производство (некомбинированная выработка)+передача+сбыт

Sheet REESTR_MO (hidden)
A1: МР | B1: МО | C1: МО_ОКТМО | D1: МР | E1: ИМЯ ДИАПАЗОНА
A2: Агаповский муниципальный район | B2: Агаповский муниципальный район | C2: 75603000 | D2: Агаповский муниципальный район | E2: MO_LIST_2
A3: Агаповский муниципальный район | B3: Агаповское | C3: 75603407 | D3: Аргаяшский муниципальный район | E3: MO_LIST_3
A4: Агаповский муниципальный район | B4: Буранное | C4: 75603411 | D4: Ашинский муниципальный район | E4: MO_LIST_4
A5: Агаповский муниципальный район | B5: Желтинское | C5: 75603422 | D5: Брединский муниципальный район | E5: MO_LIST_5
A6: Агаповский муниципальный район | B6: Магнитное | C6: 75603433 | D6: Варненский муниципальный район | E6: MO_LIST_6
A7: Агаповский муниципальный район | B7: Наровчатское | C7: 75603436 | D7: Верхнеуральский муниципальный район | E7: MO_LIST_7
A8: Агаповский муниципальный район | B8: Первомайское | C8: 75603444 | D8: Город Верхний Уфалей | E8: MO_LIST_8
A9: Агаповский муниципальный район | B9: Приморское | C9: 75603455 | D9: Город Златоуст | E9: MO_LIST_9
A10: Агаповский муниципальный район | B10: Светлогорское | C10: 75603466 | D10: Город Карабаш | E10: MO_LIST_10
A11: Агаповский муниципальный район | B11: Черниговское | C11: 75603472 | D11: Город Копейск | E11: MO_LIST_11
A12: Агаповский муниципальный район | B12: Янгельское | C12: 75603477 | D12: Город Кыштым | E12: MO_LIST_12
A13: Аргаяшский муниципальный район | B13: Акбашевское | C13: 75606410 | D13: Город Магнитогорск | E13: MO_LIST_13
A14: Аргаяшский муниципальный район | B14: Аргаяшский муниципальный район | C14: 75606000 | D14: Город Миасс | E14: MO_LIST_14
A15: Аргаяшский муниципальный район | B15: Аргаяшское | C15: 75606412 | D15: Город Озерск (ЗАТО) | E15: MO_LIST_15
A16: Аргаяшский муниципальный район | B16: Аязгуловское | C16: 75606420 | D16: Город Снежинск (ЗАТО) | E16: MO_LIST_16
A17: Аргаяшский муниципальный район | B17: Байрамгуловское | C17: 75606433 | D17: Город Трехгорный (ЗАТО) | E17: MO_LIST_17
A18: Аргаяшский муниципальный район | B18: Дербишевское | C18: 75606440 | D18: Город Троицк | E18: MO_LIST_18
A19: Аргаяшский муниципальный район | B19: Ишалинское | C19: 75606445 | D19: Город Усть-Катав | E19: MO_LIST_19
A20: Аргаяшский муниципальный район | B20: Камышевское | C20: 75606450 | D20: Город Чебаркуль | E20: MO_LIST_20
A21: Аргаяшский муниципальный район | B21: Кузнецкое | C21: 75606460 | D21: Город Южноуральск | E21: MO_LIST_21
A22: Аргаяшский муниципальный район | B22: Кулуевское | C22: 75606470 | D22: Городские округа Челябинской области | E22: MO_LIST_22
A23: Аргаяшский муниципальный район | B23: Норкинское | C23: 75606480 | D23: Еманжелинский муниципальный район | E23: MO_LIST_23
A24: Аргаяшский муниципальный район | B24: Худайбердинское | C24: 75606490 | D24: Еткульский муниципальный район | E24: MO_LIST_24
A25: Аргаяшский муниципальный район | B25: Яраткуловское | C25: 75606498 | D25: Карталинский муниципальный район | E25: MO_LIST_25
A26: Ашинский муниципальный район | B26: Ашинский муниципальный район | C26: 75609000 | D26: Каслинский муниципальный район | E26: MO_LIST_26
A27: Ашинский муниципальный район | B27: Город Аша | C27: 75609101 | D27: Катав-Ивановский муниципальный район | E27: MO_LIST_27
A28: Ашинский муниципальный район | B28: Город Миньяр | C28: 75609103 | D28: Кизильский муниципальный район | E28: MO_LIST_28
A29: Ашинский муниципальный район | B29: Город Сим | C29: 75609105 | D29: Коркинский муниципальный район | E29: MO_LIST_29
A30: Ашинский муниципальный район | B30: Поселок Кропачево | C30: 75609153 | D30: Красноармейский муниципальный район | E30: MO_LIST_30
A31: Ашинский муниципальный район | B31: Укское | C31: 75609477 | D31: Кунашакский муниципальный район | E31: MO_LIST_31
A32: Брединский муниципальный район | B32: Амурское | C32: 75612406 | D32: Кусинский муниципальный район | E32: MO_LIST_32
A33: Брединский муниципальный район | B33: Андреевское | C33: 75612410 | D33: Нагайбакский муниципальный район | E33: MO_LIST_33
A34: Брединский муниципальный район | B34: Атамановское | C34: 75612412 | D34: Нязепетровский муниципальный район | E34: MO_LIST_34
A35: Брединский муниципальный район | B35: Белокаменское | C35: 75612420 | D35: Октябрьский муниципальный район | E35: MO_LIST_35
A36: Брединский муниципальный район | B36: Боровское | C36: 75612430 | D36: Пластовский муниципальный район | E36: MO_LIST_36
A37: Брединский муниципальный район | B37: Брединский муниципальный район | C37: 75612000 | D37: Поселок Локомотивный (ЗАТО) | E37: MO_LIST_37
A38: Брединский муниципальный район | B38: Брединское | C38: 75612432 | D38: Саткинский муниципальный район | E38: MO_LIST_38
A39: Брединский муниципальный район | B39: Калининское | C39: 75612440 | D39: Сосновский муниципальный район | E39: MO_LIST_39
A40: Брединский муниципальный район | B40: Княженское | C40: 75612450 | D40: Троицкий муниципальный район | E40: MO_LIST_40
A41: Брединский муниципальный район | B41: Комсомольское | C41: 75612460 | D41: Увельский муниципальный район | E41: MO_LIST_41
A42: Брединский муниципальный район | B42: Наследницкое | C42: 75612470 | D42: Уйский муниципальный район | E42: MO_LIST_42
A43: Брединский муниципальный район | B43: Павловское | C43: 75612480 | D43: Чебаркульский муниципальный район | E43: MO_LIST_43
A44: Брединский муниципальный район | B44: Рымнинское | C44: 75612490 | D44: Чесменский муниципальный район | E44: MO_LIST_44
A45: Варненский муниципальный район | B45: Алексеевское | C45: 75614405 | D45: город Челябинск | E45: MO_LIST_45
A46: Варненский муниципальный район | B46: Аятское | C46: 75614410
A47: Варненский муниципальный район | B47: Бородиновское | C47: 75614415
A48: Варненский муниципальный район | B48: Варненский муниципальный район | C48: 75614000
A49: Варненский муниципальный район | B49: Варненское | C49: 75614420
A50: Варненский муниципальный район | B50: Казновское | C50: 75614422
A51: Варненский муниципальный район | B51: Катенинское | C51: 75614423
A52: Варненский муниципальный район | B52: Краснооктябрьское | C52: 75614425
A53: Варненский муниципальный район | B53: Кулевчинское | C53: 75614430
A54: Варненский муниципальный район | B54: Николаевское | C54: 75614440
A55: Варненский муниципальный район | B55: Новоуральское | C55: 75614445
A56: Варненский муниципальный район | B56: Покровское | C56: 75614450
A57: Варненский муниципальный район | B57: Толстинское | C57: 75614455
A58: Верхнеуральский муниципальный район | B58: Бабарыкинское | C58: 75617411
A59: Верхнеуральский муниципальный район | B59: Верхнеуральский муниципальный район | C59: 75617000
A60: Верхнеуральский муниципальный район | B60: Город Верхнеуральск | C60: 75617101
A61: Верхнеуральский муниципальный район | B61: Карагайское | C61: 75617422
A62: Верхнеуральский муниципальный район | B62: Кирсинское | C62: 75617433
A63: Верхнеуральский муниципальный район | B63: Краснинское | C63: 75617444
A64: Верхнеуральский муниципальный район | B64: Петропавловское | C64: 75617455
A65: Верхнеуральский муниципальный район | B65: Поселок Межозерный | C65: 75617153
A66: Верхнеуральский муниципальный район | B66: Спасское | C66: 75617466
A67: Верхнеуральский муниципальный район | B67: Степное | C67: 75617477
A68: Верхнеуральский муниципальный район | B68: Сурменевское | C68: 75617479
A69: Верхнеуральский муниципальный район | B69: Форштадское | C69: 75617488
A70: Город Верхний Уфалей | B70: Город Верхний Уфалей | C70: 75706000
A71: Город Златоуст | B71: Город Златоуст | C71: 75712000
A72: Город Карабаш | B72: Город Карабаш | C72: 75715000
A73: Город Копейск | B73: Город Копейск | C73: 75728000
A74: Город Кыштым | B74: Город Кыштым | C74: 75734000
A75: Город Магнитогорск | B75: Город Магнитогорск | C75: 75738000
A76: Город Миасс | B76: Город Миасс | C76: 75742000
A77: Город Озерск (ЗАТО) | B77: Город Озерск (ЗАТО) | C77: 75743000
A78: Город Снежинск (ЗАТО) | B78: Город Снежинск (ЗАТО) | C78: 75746000
A79: Город Трехгорный (ЗАТО) | B79: Город Трехгорный (ЗАТО) | C79: 75707000
A80: Город Троицк | B80: Город Троицк | C80: 75752000
A81: Город Усть-Катав | B81: Город Усть-Катав | C81: 75755000
A82: Город Чебаркуль | B82: Город Чебаркуль | C82: 75758000
A83: Город Южноуральск | B83: Город Южноуральск | C83: 75764000
A84: Городские округа Челябинской области | B84: Городские округа Челябинской области | C84: 75700000
A85: Городские округа Челябинской области | B85: город Челябинск | C85: 75700000
A86: Еманжелинский муниципальный район | B86: Город Еманжелинск | C86: 75619101
A87: Еманжелинский муниципальный район | B87: Еманжелинский муниципальный район | C87: 75619000
A88: Еманжелинский муниципальный район | B88: Поселок Зауральский | C88: 75619152
A89: Еманжелинский муниципальный район | B89: Поселок Красногорский | C89: 75619154
A90: Еткульский муниципальный район | B90: Белоносовское | C90: 75620410
A91: Еткульский муниципальный район | B91: Белоусовское | C91: 75620412
A92: Еткульский муниципальный район | B92: Еманжелинское | C92: 75620420
A93: Еткульский муниципальный район | B93: Еткульский муниципальный район | C93: 75620000
A94: Еткульский муниципальный район | B94: Еткульское | C94: 75620430
A95: Еткульский муниципальный район | B95: Каратабанское | C95: 75620440
A96: Еткульский муниципальный район | B96: Коелгинское | C96: 75620450
A97: Еткульский муниципальный район | B97: Лебедевское | C97: 75620460
A98: Еткульский муниципальный район | B98: Новобатуринское | C98: 75620465
A99: Еткульский муниципальный район | B99: Печенкинское | C99: 75620470
A100: Еткульский муниципальный район | B100: Селезянское | C100: 75620490
A101: Карталинский муниципальный район | B101: Анненское | C101: 75623405
A102: Карталинский муниципальный район | B102: Варшавское | C102: 75623410
A103: Карталинский муниципальный район | B103: Великопетровское | C103: 75623415
A104: Карталинский муниципальный район | B104: Город Карталы | C104: 75623101
A105: Карталинский муниципальный район | B105: Еленинское | C105: 75623420
A106: Карталинский муниципальный район | B106: Карталинский муниципальный район | C106: 75623000
A107: Карталинский муниципальный район | B107: Мичуринское | C107: 75623425
A108: Карталинский муниципальный район | B108: Неплюевское | C108: 75623428
A109: Карталинский муниципальный район | B109: Новокаолиновое | C109: 75623430
A110: Карталинский муниципальный район | B110: Полтавское | C110: 75623435
A111: Карталинский муниципальный район | B111: Снежненское | C111: 75623440
A112: Карталинский муниципальный район | B112: Сухореченское | C112: 75623445
A113: Карталинский муниципальный район | B113: Южно-Степное | C113: 75623450
A114: Каслинский муниципальный район | B114: Багарякское | C114: 75626405
A115: Каслинский муниципальный район | B115: Береговое | C115: 75626410
A116: Каслинский муниципальный район | B116: Булзинское | C116: 75626415
A117: Каслинский муниципальный район | B117: Воздвиженское сельское поселение | C117: 75626420
A118: Каслинский муниципальный район | B118: Город Касли | C118: 75626101
A119: Каслинский муниципальный район | B119: Григорьевское сельское поселение | C119: 75626425
A120: Каслинский муниципальный район | B120: Каслинский муниципальный район | C120: 75626000
A121: Каслинский муниципальный район | B121: Маукское | C121: 75626430
A122: Каслинский муниципальный район | B122: Поселок Вишневогорск | C122: 75626153
A123: Каслинский муниципальный район | B123: Тюбукское | C123: 75626440
A124: Каслинский муниципальный район | B124: Шабуровское | C124: 75626445
A125: Катав-Ивановский муниципальный район | B125: Город Катав-Ивановск | C125: 75629101
A126: Катав-Ивановский муниципальный район | B126: Город Юрюзань | C126: 75629116
A127: Катав-Ивановский муниципальный район | B127: Катав-Ивановский муниципальный район | C127: 75629000
A128: Катав-Ивановский муниципальный район | B128: Лесное | C128: 75629430
A129: Кизильский муниципальный район | B129: Гранитное | C129: 75632000
A130: Кизильский муниципальный район | B130: Измайловское | C130: 75632440
A131: Кизильский муниципальный район | B131: Карабулакское | C131: 75632443
A132: Кизильский муниципальный район | B132: Кацбахское | C132: 75632446
A133: Кизильский муниципальный район | B133: Кизильский муниципальный район | C133: 75632000
A134: Кизильский муниципальный район | B134: Кизильское | C134: 75632450
A135: Кизильский муниципальный район | B135: Обручевское | C135: 75632460
A136: Кизильский муниципальный район | B136: Полоцкое | C136: 75632470
A137: Кизильский муниципальный район | B137: Сыртинское | C137: 75632490
A138: Кизильский муниципальный район | B138: Уральское | C138: 75632493
A139: Коркинский муниципальный район | B139: Город Коркино | C139: 75633101
A140: Коркинский муниципальный район | B140: Коркинский муниципальный район | C140: 75633000
A141: Коркинский муниципальный район | B141: Поселок Первомайский | C141: 75633154
A142: Коркинский муниципальный район | B142: Розинское | C142: 75633156
A143: Красноармейский муниципальный район | B143: Алабугское | C143: 75634405
A144: Красноармейский муниципальный район | B144: Баландинское | C144: 75634408
A145: Красноармейский муниципальный район | B145: Березовское | C145: 75634410
A146: Красноармейский муниципальный район | B146: Бродокалмакское | C146: 75634415
A147: Красноармейский муниципальный район | B147: Дубровское | C147: 75634417
A148: Красноармейский муниципальный район | B148: Канашевское | C148: 75634420
A149: Красноармейский муниципальный район | B149: Козыревское | C149: 75634425
A150: Красноармейский муниципальный район | B150: Красноармейский муниципальный район | C150: 75634000
A151: Красноармейский муниципальный район | B151: Лазурненское | C151: 75634430
A152: Красноармейский муниципальный район | B152: Луговское | C152: 75634435
A153: Красноармейский муниципальный район | B153: Миасское | C153: 75634440
A154: Красноармейский муниципальный район | B154: Озерное | C154: 75634445
A155: Красноармейский муниципальный район | B155: Русско-Теченское | C155: 75634450
A156: Красноармейский муниципальный район | B156: Сугоякское | C156: 75634455
A157: Красноармейский муниципальный район | B157: Теренкульское | C157: 75634457
A158: Красноармейский муниципальный район | B158: Шумовское | C158: 75634460
A159: Кунашакский муниципальный район | B159: Буринское | C159: 75636420
A160: Кунашакский муниципальный район | B160: Кунашакский муниципальный район | C160: 75636000
A161: Кунашакский муниципальный район | B161: Кунашакское | C161: 75636430
A162: Кунашакский муниципальный район | B162: Куяшское | C162: 75636440
A163: Кунашакский муниципальный район | B163: Муслюмовское | C163: 75636450
A164: Кунашакский муниципальный район | B164: Саринское | C164: 75636460
A165: Кунашакский муниципальный район | B165: Урукульское | C165: 75636470
A166: Кунашакский муниципальный район | B166: Усть-Багарякское | C166: 75636480
A167: Кунашакский муниципальный район | B167: Халитовское | C167: 75636490
A168: Кусинский муниципальный район | B168: Город Куса | C168: 75638101
A169: Кусинский муниципальный район | B169: Злоказавское | C169: 75638411
A170: Кусинский муниципальный район | B170: Кусинский муниципальный район | C170: 75638000
A171: Кусинский муниципальный район | B171: Медведевское | C171: 75638422
A172: Кусинский муниципальный район | B172: Петропавловское | C172: 75638433
A173: Кусинский муниципальный район | B173: Поселок Магнитка | C173: 75638153
A174: Нагайбакский муниципальный район | B174: Арсинское | C174: 75642410
A175: Нагайбакский муниципальный район | B175: Балканское | C175: 75642420
A176: Нагайбакский муниципальный район | B176: Кассельское | C176: 75642430
A177: Нагайбакский муниципальный район | B177: Куликовское | C177: 75642440
A178: Нагайбакский муниципальный район | B178: Нагайбакский муниципальный район | C178: 75642000
A179: Нагайбакский муниципальный район | B179: Нагайбакское | C179: 75642450
A180: Нагайбакский муниципальный район | B180: Остроленское | C180: 75642460
A181: Нагайбакский муниципальный район | B181: Парижское | C181: 75642470
A182: Нагайбакский муниципальный район | B182: Переселенческое | C182: 75642480
A183: Нагайбакский муниципальный район | B183: Поселок Южный | C183: 75642154
A184: Нагайбакский муниципальный район | B184: Фершампенуазское | C184: 75642490
A185: Нязепетровский муниципальный район | B185: Город Нязепетровск | C185: 75644101
A186: Нязепетровский муниципальный район | B186: Гривенское | C186: 75644411
A187: Нязепетровский муниципальный район | B187: Нязепетровский муниципальный район | C187: 75644000
A188: Нязепетровский муниципальный район | B188: Ункурдинское | C188: 75644433
A189: Нязепетровский муниципальный район | B189: Шемахинское | C189: 75644444
A190: Октябрьский муниципальный район | B190: Каракульское | C190: 75647410
A191: Октябрьский муниципальный район | B191: Кочердыкское | C191: 75647415
A192: Октябрьский муниципальный район | B192: Маякское | C192: 75647430
A193: Октябрьский муниципальный район | B193: Октябрьский муниципальный район | C193: 75647000
A194: Октябрьский муниципальный район | B194: Октябрьское | C194: 75647445
A195: Октябрьский муниципальный район | B195: Подовинное | C195: 75647450
A196: Октябрьский муниципальный район | B196: Чудиновское | C196: 75647465
A197: Пластовский муниципальный район | B197: Борисовское | C197: 75648403
A198: Пластовский муниципальный район | B198: Город Пласт | C198: 75648101
A199: Пластовский муниципальный район | B199: Демаринское | C199: 75648406
A200: Пластовский муниципальный район | B200: Кочкарское | C200: 75648409
... 87 more rows

Sheet modHyp (hidden)

Sheet modChange (hidden)

Sheet modfrmReestr (hidden)

Sheet modPROV (hidden)

Sheet modCommandButton (hidden)

Sheet modTitleSheetHeaders (hidden)

Sheet modServiceModule (hidden)

Sheet modClassifierValidate (hidden)

Sheet modWindowClipboard (hidden)

Sheet modInfo (hidden)

Sheet modfrmDateChoose (hidden)

Sheet modReestr (hidden)

Sheet Паспорт (hidden)
AV1: Код диапазона: | AW1: Название диапазона: | AX1: Сфера регулирования: | AY1: Подсфера: | AZ1: Тип информации в шаблоне: | BA1: Состояние шаблона: | BB1: Периодичность: | BC1: "Геотип" шаблона: | BD1: Тип шаблона: | BE1: Заказчик:
AV2: ps_sr | AW2: Сфера регулирования: | AX2: Не определено | AY2: Не определено | AZ2: Не определено | BA2: Не определено | BB2: Не определено | BC2: Не определено | BD2: Не определено | BE2: Не определено
AV3: ps_ti | AW3: Тип информации в шаблоне: | AX3: NETS | AY3: водоотведение - очистка | AZ3: Статистический | BA3: Проект | BB3: Единовременный | BC3: Региональный шаблон | BD3: Атомарный | BE3: РЭК
D4: Паспорт к шаблону | AV4: ps_ssh | AW4: Состояние шаблона: | AX4: Аэропорты | AY4: водоотведение - передача | AZ4: Расчетный | BA4: Утвержден | BB4: Ежемесячный | BC4: Муниципальный шаблон | BD4: Сводный | BE4: ФСТ
AV5: ps_p | AW5: Периодичность: | AX5: Газ | AY5: водоотведение - прием | AZ5: Обосновывающие материалы | BB5: Ежеквартальный | BC5: Шаблон от организации | BE5: Экспертная организация
D6: 1. Общие сведения | AV6: ps_geo | AW6: "Геотип" шаблона: | AX6: Железные дороги | AY6: водоснабжение - очистка | BB6: Ежегодный
D7: 1.1 | E7: Код | AV7: ps_tsh | AW7: Тип шаблона: | AX7: ЖКХ | AY7: водоснабжение - передача
D8: 1.2 | E8: Краткое наименование | AV8: ps_psr | AW8: Подсфера: | AX8: Медицина | AY8: водоснабжение - подъем
D9: 1.3 | E9: Полное наименование | AV9: ps_z | AW9: Заказчик: | AX9: Порты | AY9: выработка ТС
D10: 1.4 | E10: Сфера регулирования | AX10: Связь | AY10: выработка ТС в режиме комбинированной выработки
D11: 1.5 | E11: Подсфера | AX11: Транспорт | AY11: выработка электрической энергии
D12: 1.6 | E12: Состояние шаблона (Утвержден/Проект) | AX12: Электроэнергетика | AY12: выработка+передача+сбыт ТС
D13: 1.7 | E13: Заказчик | AY13: передача ТС
D14: 1.8 | E14: Отчитывается | AY14: передача ЭЭ
D15: 1.9 | E15: Тип шаблона | G15: Если шаблон сводный, необходимо указать код атомарного шаблона для него: | AY15: сбыт ТС
D16: 1.10 | E16: Текущая версия | AY16: сбыт ЭЭ
AY17: ТБО
D18: 2. Организационные
D19: 2.1 | E19: Тип информации в шаблоне
D20: 2.2 | E20: Ответственный регулятор (от заказчика)
D21: 2.3 | E21: Ответственный специалист (от СМА)
D22: 2.4 | E22: Ответственный программист (от СМА)
D23: 2.5 | E23: Ответственные за сбор данных (от СМА)
D24: 2.6 | E24: Ответственные за сбор данных (от заказчика)
D26: 3. Законодательство (методики, приказы, постановления ...)
C27: first | D27: 3.1 | E27: Документ1
C28: end | D28: Добавить документ
D30: 4. Периодичность
D31: 4.1 | E31: Периодичность
E32: Мониторинги(прошедшие и плановые) | F32: Дата начала | G32: Дата окончания | H32: Согласно (приказ, постановление, письмо)
C33: first | D33: 4.2.1 | E33: Мониторинг1
C34: end | D34: Добавить мониторинг
D36: 5. Состав шаблона
E37: Лист | F37: Последняя дата изменений эскиза | G37: Состояние листа | H37: Наименование витрины для листа | I37: Комментарии
C38: first | D38: 5.1.1
C39: Удалить | D39: 5.1.2
C40: Удалить | D40: 5.1.3
C41: Удалить | D41: 5.1.4
C42: Удалить | D42: 5.1.5
C43: Удалить | D43: 5.1.6
C44: Удалить | D44: 5.1.7
C45: Удалить | D45: 5.1.8
C46: Удалить | D46: 5.1.9
C47: Удалить | D47: 5.1.10
C48: Удалить | D48: 5.1.11
C49: Удалить | D49: 5.1.12
C50: Удалить | D50: 5.1.13
C51: Удалить | D51: 5.1.14
C52: Удалить | D52: 5.1.15
C53: Удалить | D53: 5.1.16
C54: Удалить | D54: 5.1.17
C55: end | D55: Добавить лист
D57: 6. Сроки и даты
D58: 6.1.1 | E58: Даты получения последних эскизов, от экспертов
D59: 6.1.2 | E59: Даты отправки шаблона на проверку
D60: 6.1.3 | E60: Предполагаемый срок сдачи шаблона в эксплуатацию
D62: 7. Версии
E63: Версия | F63: Отличия от предыдущей
C64: first | D64: 7.1
C65: end | D65: Добавить версию
D67: 8. Дополнительно
D68: 8.1 | E68: Аналогичные("похожие") шаблоны
D69: 8.2 | E69: Особенности шаблона
D70: 8.3 | E70: Модуль на основе данного шаблона
D71: 8.4 | E71: Процедуры загрузки данных в витрины
